Publisher Label,Publisher URI,"Supplier ID","Supplier","Invoice No.","Amount (£)","Purpose","Transaction Number","Payment Date","Organisational Unit","Cost Centre(T)","Internal Category Number"
"Wolverhampton City Council","http://opendatacommunities.org/id/metropolitan-district-council/wolverhampton","705183","Lodge Tyre Co.Limited","15R00962","-85.00","Vehicle Maintenance - Spare Parts","190417753","02/02/2018","Fleet Services","Fleet Management","R3009"
"Wolverhampton City Council","http://opendatacommunities.org/id/metropolitan-district-council/wolverhampton","705210","Low Hill Community Association","239","500.00","Room Hire","130205510","21/02/2018","Skills","Employment Programmes","R2201"
"Wolverhampton City Council","http://opendatacommunities.org/id/metropolitan-district-council/wolverhampton","705225","Luscombe Cider Limited","0000151949","248.88","Provisions (Resale)","130205640","14/02/2018","Visitor Economy","Art Gallery Tea Room","R4102"
"Wolverhampton City Council","http://opendatacommunities.org/id/metropolitan-district-council/wolverhampton","705236","M & J Drilling Services Limited","10247","9,502.32","Services - Professional Fees","130206336","21/02/2018","Schools","Pupil Referral Units - Orchard Centre","R4400"
"Wolverhampton City Council","http://opendatacommunities.org/id/metropolitan-district-council/wolverhampton","705236","M & J Drilling Services Limited","10243","37,472.92","Services - Professional Fees","130205088","21/02/2018","Schools","Pupil Referral Units - Orchard Centre","R4400"
"Wolverhampton City Council","http://opendatacommunities.org/id/metropolitan-district-council/wolverhampton","705249","M Dixon","080118","1,000.00","Services - Professional Fees","130202446","02/02/2018","Visitor Economy","The Clangers & TV Puppets","R4400"
"Wolverhampton City Council","http://opendatacommunities.org/id/metropolitan-district-council/wolverhampton","705274","M.K.G. (Food Products) Limited","072259","237.91","Provisions (Resale)","130204024","21/02/2018","Visitor Economy","Art Gallery Tea Room","R4102"
"Wolverhampton City Council","http://opendatacommunities.org/id/metropolitan-district-council/wolverhampton","705274","M.K.G. (Food Products) Limited","072259","-237.91","Provisions (Resale)","130204024","21/02/2018","Visitor Economy","Art Gallery Tea Room","R4102"
"Wolverhampton City Council","http://opendatacommunities.org/id/metropolitan-district-council/wolverhampton","705274","M.K.G. (Food Products) Limited","072259","20.68","Provisions (Resale)","130204024","21/02/2018","Visitor Economy","Art Gallery Tea Room","R4102"
"Wolverhampton City Council","http://opendatacommunities.org/id/metropolitan-district-council/wolverhampton","705274","M.K.G. (Food Products) Limited","072259","217.23","Provisions (Resale)","130204024","21/02/2018","Visitor Economy","Art Gallery Tea Room","R4102"
"Wolverhampton City Council","http://opendatacommunities.org/id/metropolitan-district-council/wolverhampton","705274","M.K.G. (Food Products) Limited","071866","133.80","Provisions (Resale)","130204023","16/02/2018","Visitor Economy","Art Gallery Tea Room","R4102"
"Wolverhampton City Council","http://opendatacommunities.org/id/metropolitan-district-council/wolverhampton","705274","M.K.G. (Food Products) Limited","071866","-133.80","Provisions (Resale)","130204023","16/02/2018","Visitor Economy","Art Gallery Tea Room","R4102"
"Wolverhampton City Council","http://opendatacommunities.org/id/metropolitan-district-council/wolverhampton","705274","M.K.G. (Food Products) Limited","071866","133.80","Provisions (Resale)","130204023","16/02/2018","Visitor Economy","Art Gallery Tea Room","R4102"
"Wolverhampton City Council","http://opendatacommunities.org/id/metropolitan-district-council/wolverhampton","705274","M.K.G. (Food Products) Limited","070055","157.66","Provisions (Resale)","130202274","07/02/2018","Visitor Economy","Art Gallery Tea Room","R4102"
"Wolverhampton City Council","http://opendatacommunities.org/id/metropolitan-district-council/wolverhampton","705274","M.K.G. (Food Products) Limited","070055","-157.66","Provisions (Resale)","130202274","07/02/2018","Visitor Economy","Art Gallery Tea Room","R4102"
"Wolverhampton City Council","http://opendatacommunities.org/id/metropolitan-district-council/wolverhampton","705274","M.K.G. (Food Products) Limited","070055","2.48","Provisions (Resale)","130202274","07/02/2018","Visitor Economy","Art Gallery Tea Room","R4102"
"Wolverhampton City Council","http://opendatacommunities.org/id/metropolitan-district-council/wolverhampton","705274","M.K.G. (Food Products) Limited","070055","155.18","Provisions (Resale)","130202274","07/02/2018","Visitor Economy","Art Gallery Tea Room","R4102"
"Wolverhampton City Council","http://opendatacommunities.org/id/metropolitan-district-council/wolverhampton","705274","M.K.G. (Food Products) Limited","071534","92.24","Provisions (Resale)","130203338","14/02/2018","Visitor Economy","Art Gallery Tea Room","R4102"
"Wolverhampton City Council","http://opendatacommunities.org/id/metropolitan-district-council/wolverhampton","705274","M.K.G. (Food Products) Limited","071534","-92.24","Provisions (Resale)","130203338","14/02/2018","Visitor Economy","Art Gallery Tea Room","R4102"
"Wolverhampton City Council","http://opendatacommunities.org/id/metropolitan-district-council/wolverhampton","705274","M.K.G. (Food Products) Limited","071534","92.24","Provisions (Resale)","130203338","14/02/2018","Visitor Economy","Art Gallery Tea Room","R4102"
"Wolverhampton City Council","http://opendatacommunities.org/id/metropolitan-district-council/wolverhampton","705274","M.K.G. (Food Products) Limited","072260","197.27","Provisions (Resale)","130204025","21/02/2018","Visitor Economy","Art Gallery Tea Room","R4102"
"Wolverhampton City Council","http://opendatacommunities.org/id/metropolitan-district-council/wolverhampton","705274","M.K.G. (Food Products) Limited","072260","-197.27","Provisions (Resale)","130204025","21/02/2018","Visitor Economy","Art Gallery Tea Room","R4102"
"Wolverhampton City Council","http://opendatacommunities.org/id/metropolitan-district-council/wolverhampton","705274","M.K.G. (Food Products) Limited","072260","197.27","Provisions (Resale)","130204025","21/02/2018","Visitor Economy","Art Gallery Tea Room","R4102"
"Wolverhampton City Council","http://opendatacommunities.org/id/metropolitan-district-council/wolverhampton","705274","M.K.G. (Food Products) Limited","071131","254.17","Provisions (Resale)","130203335","14/02/2018","Visitor Economy","Art Gallery Tea Room","R4102"
"Wolverhampton City Council","http://opendatacommunities.org/id/metropolitan-district-council/wolverhampton","705274","M.K.G. (Food Products) Limited","071131","-254.17","Provisions (Resale)","130203335","14/02/2018","Visitor Economy","Art Gallery Tea Room","R4102"
"Wolverhampton City Council","http://opendatacommunities.org/id/metropolitan-district-council/wolverhampton","705274","M.K.G. (Food Products) Limited","071131","254.17","Provisions (Resale)","130203335","14/02/2018","Visitor Economy","Art Gallery Tea Room","R4102"
"Wolverhampton City Council","http://opendatacommunities.org/id/metropolitan-district-council/wolverhampton","705274","M.K.G. (Food Products) Limited","070056","173.26","Provisions (Resale)","130202275","07/02/2018","Visitor Economy","Art Gallery Tea Room","R4102"
"Wolverhampton City Council","http://opendatacommunities.org/id/metropolitan-district-council/wolverhampton","705274","M.K.G. (Food Products) Limited","070056","-173.26","Provisions (Resale)","130202275","07/02/2018","Visitor Economy","Art Gallery Tea Room","R4102"
"Wolverhampton City Council","http://opendatacommunities.org/id/metropolitan-district-council/wolverhampton","705274","M.K.G. (Food Products) Limited","070056","173.26","Provisions (Resale)","130202275","07/02/2018","Visitor Economy","Art Gallery Tea Room","R4102"
"Wolverhampton City Council","http://opendatacommunities.org/id/metropolitan-district-council/wolverhampton","705274","M.K.G. (Food Products) Limited","071132","237.53","Provisions (Resale)","130203336","14/02/2018","Visitor Economy","Art Gallery Tea Room","R4102"
"Wolverhampton City Council","http://opendatacommunities.org/id/metropolitan-district-council/wolverhampton","705274","M.K.G. (Food Products) Limited","071132","-237.53","Provisions (Resale)","130203336","14/02/2018","Visitor Economy","Art Gallery Tea Room","R4102"
"Wolverhampton City Council","http://opendatacommunities.org/id/metropolitan-district-council/wolverhampton","705274","M.K.G. (Food Products) Limited","071132","237.53","Provisions (Resale)","130203336","14/02/2018","Visitor Economy","Art Gallery Tea Room","R4102"
"Wolverhampton City Council","http://opendatacommunities.org/id/metropolitan-district-council/wolverhampton","705274","M.K.G. (Food Products) Limited","072668","80.16","Provisions (Resale)","130204027","21/02/2018","Visitor Economy","Art Gallery Tea Room","R4102"
"Wolverhampton City Council","http://opendatacommunities.org/id/metropolitan-district-council/wolverhampton","705274","M.K.G. (Food Products) Limited","072668","-80.16","Provisions (Resale)","130204027","21/02/2018","Visitor Economy","Art Gallery Tea Room","R4102"
"Wolverhampton City Council","http://opendatacommunities.org/id/metropolitan-district-council/wolverhampton","705274","M.K.G. (Food Products) Limited","072668","9.75","Provisions (Resale)","130204027","21/02/2018","Visitor Economy","Art Gallery Tea Room","R4102"
"Wolverhampton City Council","http://opendatacommunities.org/id/metropolitan-district-council/wolverhampton","705274","M.K.G. (Food Products) Limited","072668","70.41","Provisions (Resale)","130204027","21/02/2018","Visitor Economy","Art Gallery Tea Room","R4102"
"Wolverhampton City Council","http://opendatacommunities.org/id/metropolitan-district-council/wolverhampton","705274","M.K.G. (Food Products) Limited","070739","209.89","Provisions (Resale)","130203334","09/02/2018","Visitor Economy","Art Gallery Tea Room","R4102"
"Wolverhampton City Council","http://opendatacommunities.org/id/metropolitan-district-council/wolverhampton","705274","M.K.G. (Food Products) Limited","070739","-209.89","Provisions (Resale)","130203334","09/02/2018","Visitor Economy","Art Gallery Tea Room","R4102"
"Wolverhampton City Council","http://opendatacommunities.org/id/metropolitan-district-council/wolverhampton","705274","M.K.G. (Food Products) Limited","070739","209.89","Provisions (Resale)","130203334","09/02/2018","Visitor Economy","Art Gallery Tea Room","R4102"
"Wolverhampton City Council","http://opendatacommunities.org/id/metropolitan-district-council/wolverhampton","705274","M.K.G. (Food Products) Limited","069704","262.52","Provisions (Resale)","130202273","02/02/2018","Visitor Economy","Art Gallery Tea Room","R4102"
"Wolverhampton City Council","http://opendatacommunities.org/id/metropolitan-district-council/wolverhampton","705274","M.K.G. (Food Products) Limited","069704","-262.52","Provisions (Resale)","130202273","02/02/2018","Visitor Economy","Art Gallery Tea Room","R4102"
"Wolverhampton City Council","http://opendatacommunities.org/id/metropolitan-district-council/wolverhampton","705274","M.K.G. (Food Products) Limited","069704","262.52","Provisions (Resale)","130202273","02/02/2018","Visitor Economy","Art Gallery Tea Room","R4102"
"Wolverhampton City Council","http://opendatacommunities.org/id/metropolitan-district-council/wolverhampton","705274","M.K.G. (Food Products) Limited","072667","156.30","Provisions (Resale)","130204026","21/02/2018","Visitor Economy","Art Gallery Tea Room","R4102"
"Wolverhampton City Council","http://opendatacommunities.org/id/metropolitan-district-council/wolverhampton","705274","M.K.G. (Food Products) Limited","072667","-156.30","Provisions (Resale)","130204026","21/02/2018","Visitor Economy","Art Gallery Tea Room","R4102"
"Wolverhampton City Council","http://opendatacommunities.org/id/metropolitan-district-council/wolverhampton","705274","M.K.G. (Food Products) Limited","072667","156.30","Provisions (Resale)","130204026","21/02/2018","Visitor Economy","Art Gallery Tea Room","R4102"
"Wolverhampton City Council","http://opendatacommunities.org/id/metropolitan-district-council/wolverhampton","705274","M.K.G. (Food Products) Limited","071533","189.49","Provisions (Resale)","130203337","14/02/2018","Visitor Economy","Art Gallery Tea Room","R4102"
"Wolverhampton City Council","http://opendatacommunities.org/id/metropolitan-district-council/wolverhampton","705274","M.K.G. (Food Products) Limited","071533","-189.49","Provisions (Resale)","130203337","14/02/2018","Visitor Economy","Art Gallery Tea Room","R4102"
"Wolverhampton City Council","http://opendatacommunities.org/id/metropolitan-district-council/wolverhampton","705274","M.K.G. (Food Products) Limited","071533","54.14","Provisions (Resale)","130203337","14/02/2018","Visitor Economy","Art Gallery Tea Room","R4102"
"Wolverhampton City Council","http://opendatacommunities.org/id/metropolitan-district-council/wolverhampton","705274","M.K.G. (Food Products) Limited","071533","135.35","Provisions (Resale)","130203337","14/02/2018","Visitor Economy","Art Gallery Tea Room","R4102"
"Wolverhampton City Council","http://opendatacommunities.org/id/metropolitan-district-council/wolverhampton","705274","M.K.G. (Food Products) Limited","070413","226.36","Provisions (Resale)","130202276","07/02/2018","Visitor Economy","Art Gallery Tea Room","R4102"
"Wolverhampton City Council","http://opendatacommunities.org/id/metropolitan-district-council/wolverhampton","705274","M.K.G. (Food Products) Limited","070413","-226.36","Provisions (Resale)","130202276","07/02/2018","Visitor Economy","Art Gallery Tea Room","R4102"
"Wolverhampton City Council","http://opendatacommunities.org/id/metropolitan-district-council/wolverhampton","705274","M.K.G. (Food Products) Limited","070413","226.36","Provisions (Resale)","130202276","07/02/2018","Visitor Economy","Art Gallery Tea Room","R4102"
"Wolverhampton City Council","http://opendatacommunities.org/id/metropolitan-district-council/wolverhampton","705276","M3 Communications Limited","19636","298.69","Marketing \ Non-staff advertising","130207246","28/02/2018","Visitor Economy","Civic Halls Non-Direct Event Management Account","R4317"
"Wolverhampton City Council","http://opendatacommunities.org/id/metropolitan-district-council/wolverhampton","705276","M3 Communications Limited","19734","271.00","Marketing \ Non-staff advertising","130207247","28/02/2018","Visitor Economy","Civic Halls Non-Direct Event Management Account","R4317"
"Wolverhampton City Council","http://opendatacommunities.org/id/metropolitan-district-council/wolverhampton","705281","Machine Mart Limited","1005573","44.99","Equipment - Purchase","190419460","07/02/2018","Fleet Services","Fleet Management","R4000"
"Wolverhampton City Council","http://opendatacommunities.org/id/metropolitan-district-council/wolverhampton","705281","Machine Mart Limited","1005573","69.98","Equipment - Purchase","190419460","07/02/2018","Fleet Services","Fleet Management","R4000"
"Wolverhampton City Council","http://opendatacommunities.org/id/metropolitan-district-council/wolverhampton","705281","Machine Mart Limited","1005411","24.99","Equipment - Purchase","190419459","07/02/2018","Fleet Services","Fleet Management","R4000"
"Wolverhampton City Council","http://opendatacommunities.org/id/metropolitan-district-council/wolverhampton","705281","Machine Mart Limited","1006930","170.12","Equipment - Purchase","130204028","14/02/2018","Fleet Services","Passenger Transport - General","R4000"
"Wolverhampton City Council","http://opendatacommunities.org/id/metropolitan-district-council/wolverhampton","705281","Machine Mart Limited","1006930","-170.12","Equipment - Purchase","130204028","14/02/2018","Fleet Services","Passenger Transport - General","R4000"
"Wolverhampton City Council","http://opendatacommunities.org/id/metropolitan-district-council/wolverhampton","705281","Machine Mart Limited","1006930","134.10","Equipment - Purchase","130204028","14/02/2018","Fleet Services","Passenger Transport - General","R4000"
"Wolverhampton City Council","http://opendatacommunities.org/id/metropolitan-district-council/wolverhampton","705281","Machine Mart Limited","1006207","44.99","Equipment - Purchase","190419461","07/02/2018","Fleet Services","Fleet Management","R4000"
"Wolverhampton City Council","http://opendatacommunities.org/id/metropolitan-district-council/wolverhampton","705363","Marshall Fleet Solutions","11364505","20.16","Equipment - Purchase","190421001","09/02/2018","Fleet Services","Fleet Management","R4000"
"Wolverhampton City Council","http://opendatacommunities.org/id/metropolitan-district-council/wolverhampton","705363","Marshall Fleet Solutions","11364505","27.21","Equipment - Purchase","190421001","09/02/2018","Fleet Services","Fleet Management","R4000"
"Wolverhampton City Council","http://opendatacommunities.org/id/metropolitan-district-council/wolverhampton","705363","Marshall Fleet Solutions","11364505","86.08","Equipment - Purchase","190421001","09/02/2018","Fleet Services","Fleet Management","R4000"
"Wolverhampton City Council","http://opendatacommunities.org/id/metropolitan-district-council/wolverhampton","705367","Marstons PLC","97786280","176.71","Provisions (Resale)","130205036","28/02/2018","Visitor Economy","The Little Civic","R4102"
"Wolverhampton City Council","http://opendatacommunities.org/id/metropolitan-district-council/wolverhampton","705367","Marstons PLC","97773608","471.48","Provisions (Resale)","130204397","21/02/2018","Visitor Economy","The Little Civic","R4102"
"Wolverhampton City Council","http://opendatacommunities.org/id/metropolitan-district-council/wolverhampton","705367","Marstons PLC","97789918","108.67","Provisions (Resale)","130205306","28/02/2018","Visitor Economy","The Little Civic","R4102"
"Wolverhampton City Council","http://opendatacommunities.org/id/metropolitan-district-council/wolverhampton","705367","Marstons PLC","97773609","38.56","Provisions (Resale)","130204398","21/02/2018","Visitor Economy","The Little Civic","R4102"
"Wolverhampton City Council","http://opendatacommunities.org/id/metropolitan-district-council/wolverhampton","705428","Medicare First Limited","MFN0009905","765.00","Services - Professional Fees","130203859","09/02/2018","Child Protection","CIN/CP Social Work Unit - Area 2","R4400"
"Wolverhampton City Council","http://opendatacommunities.org/id/metropolitan-district-council/wolverhampton","705430","Medipost (UK) Limited","209889","9.95","Equipment - Purchase","130202277","07/02/2018","Older People Provider Services","Bradley Lodge Resource Centre","R4000"
"Wolverhampton City Council","http://opendatacommunities.org/id/metropolitan-district-council/wolverhampton","705430","Medipost (UK) Limited","209889","5.00","Comms - Postage","130202277","07/02/2018","Older People Provider Services","Bradley Lodge Resource Centre","R4503"
"Wolverhampton City Council","http://opendatacommunities.org/id/metropolitan-district-council/wolverhampton","705453","Mercian Shutters Limited","40663","146.25","R&M - Departmental planned (external)","130206169","16/02/2018","Maintenance Programme","Civic Centre Repairs & Maintenance","R2001"
"Wolverhampton City Council","http://opendatacommunities.org/id/metropolitan-district-council/wolverhampton","705453","Mercian Shutters Limited","40687","1,376.00","Construction and Conversion","130206171","23/02/2018","-","Capital Maintenance - Structural Works","C1100"
"Wolverhampton City Council","http://opendatacommunities.org/id/metropolitan-district-council/wolverhampton","705453","Mercian Shutters Limited","40621","2,752.00","Construction and Conversion","130202448","09/02/2018","-","Capital Maintenance - Structural Works","C1100"
"Wolverhampton City Council","http://opendatacommunities.org/id/metropolitan-district-council/wolverhampton","705453","Mercian Shutters Limited","40684","309.94","R&M - Departmental planned (external)","130206170","23/02/2018","Bereavement Services","Cemeteries","R2001"
"Wolverhampton City Council","http://opendatacommunities.org/id/metropolitan-district-council/wolverhampton","705453","Mercian Shutters Limited","40695","170.00","R&M - Departmental planned (external)","130206797","23/02/2018","Maintenance Programme","Civic Centre Repairs & Maintenance","R2001"
"Wolverhampton City Council","http://opendatacommunities.org/id/metropolitan-district-council/wolverhampton","705496","Midcounties Co-Operative Funeralcare","080/ 70069601","1,197.00","Services - Professional Fees","130202993","09/02/2018","Safeguarding","Court of Protection, Funerals and Protection of Property","R4400"
"Wolverhampton City Council","http://opendatacommunities.org/id/metropolitan-district-council/wolverhampton","705519","Midland Motascreens Limited","16287","125.00","Services - Professional Fees","190423142","14/02/2018","Fleet Services","Fleet Management","R4400"
"Wolverhampton City Council","http://opendatacommunities.org/id/metropolitan-district-council/wolverhampton","705519","Midland Motascreens Limited","16286","650.00","Equipment - Purchase","190425713","21/02/2018","Fleet Services","Fleet Management","R4000"
"Wolverhampton City Council","http://opendatacommunities.org/id/metropolitan-district-council/wolverhampton","705519","Midland Motascreens Limited","016288","430.00","Services - Professional Fees","190423091","14/02/2018","Fleet Services","Fleet Management","R4400"
"Wolverhampton City Council","http://opendatacommunities.org/id/metropolitan-district-council/wolverhampton","705520","Midland News Association Limited","I7446733","593.64","Construction and Conversion","130204404","21/02/2018","-","Housing General Fund General Schemes - Empty Properties Strategy","C1100"
"Wolverhampton City Council","http://opendatacommunities.org/id/metropolitan-district-council/wolverhampton","705520","Midland News Association Limited","I7447648","395.76","Marketing \ Non-staff advertising","130205308","21/02/2018","Operation & Maintenance of Existing Network","UTC - Utilities Organisations","R4317"
"Wolverhampton City Council","http://opendatacommunities.org/id/metropolitan-district-council/wolverhampton","705520","Midland News Association Limited","I7444742","500.00","Marketing \ Non-staff advertising","130203543","16/02/2018","Corporate Communications","Communications & Marketing - General","R4317"
"Wolverhampton City Council","http://opendatacommunities.org/id/metropolitan-district-council/wolverhampton","705520","Midland News Association Limited","I7443794","395.76","Marketing \ Non-staff advertising","130205307","14/02/2018","Operation & Maintenance of Existing Network","UTC - Utilities Organisations","R4317"
"Wolverhampton City Council","http://opendatacommunities.org/id/metropolitan-district-council/wolverhampton","705520","Midland News Association Limited","I7441088","173.14","Marketing \ Non-staff advertising","130202735","07/02/2018","Planning","Planning","R4317"
"Wolverhampton City Council","http://opendatacommunities.org/id/metropolitan-district-council/wolverhampton","705520","Midland News Association Limited","I7448870","593.64","Construction and Conversion","130205309","28/02/2018","-","Wolverhampton Interchange","C1100"
"Wolverhampton City Council","http://opendatacommunities.org/id/metropolitan-district-council/wolverhampton","705520","Midland News Association Limited","I7441743","593.64","Construction and Conversion","130202736","09/02/2018","-","Housing General Fund General Schemes - Empty Properties Strategy","C1100"
"Wolverhampton City Council","http://opendatacommunities.org/id/metropolitan-district-council/wolverhampton","705520","Midland News Association Limited","I7444997","829.26","Marketing \ Non-staff advertising","130203860","21/02/2018","The Hub","Central Advertising","R4317"
"Wolverhampton City Council","http://opendatacommunities.org/id/metropolitan-district-council/wolverhampton","705520","Midland News Association Limited","I7443470","593.64","Construction and Conversion","130203538","14/02/2018","-","Housing General Fund General Schemes - Empty Properties Strategy","C1100"
"Wolverhampton City Council","http://opendatacommunities.org/id/metropolitan-district-council/wolverhampton","705520","Midland News Association Limited","I7448540","445.22","Construction and Conversion","130204936","28/02/2018","-","Safety Programme","C1100"
"Wolverhampton City Council","http://opendatacommunities.org/id/metropolitan-district-council/wolverhampton","705520","Midland News Association Limited","I7439286","445.22","Marketing \ Non-staff advertising","130202734","07/02/2018","Operation & Maintenance of Existing Network","UTC - Utilities Organisations","R4317"
"Wolverhampton City Council","http://opendatacommunities.org/id/metropolitan-district-council/wolverhampton","705520","Midland News Association Limited","I7439983","395.76","Marketing \ Non-staff advertising","130203537","07/02/2018","Operation & Maintenance of Existing Network","UTC - Utilities Organisations","R4317"
"Wolverhampton City Council","http://opendatacommunities.org/id/metropolitan-district-council/wolverhampton","705520","Midland News Association Limited","I7441744","544.16","Construction and Conversion","130202737","09/02/2018","-","Housing General Fund General Schemes - Empty Properties Strategy","C1100"
"Wolverhampton City Council","http://opendatacommunities.org/id/metropolitan-district-council/wolverhampton","705520","Midland News Association Limited","I7450451","148.40","Marketing \ Non-staff advertising","130205311","28/02/2018","Planning","Planning","R4317"
"Wolverhampton City Council","http://opendatacommunities.org/id/metropolitan-district-council/wolverhampton","705520","Midland News Association Limited","I7444006","247.34","Marketing \ Non-staff advertising","130203539","14/02/2018","Planning","Planning","R4317"
"Wolverhampton City Council","http://opendatacommunities.org/id/metropolitan-district-council/wolverhampton","705520","Midland News Association Limited","I7445211","1,558.30","Construction and Conversion","130204403","21/02/2018","-","Safety Programme","C1100"
"Wolverhampton City Council","http://opendatacommunities.org/id/metropolitan-district-council/wolverhampton","705520","Midland News Association Limited","I7444730","544.16","Construction and Conversion","130203542","16/02/2018","-","Housing General Fund General Schemes - Empty Properties Strategy","C1100"
"Wolverhampton City Council","http://opendatacommunities.org/id/metropolitan-district-council/wolverhampton","705520","Midland News Association Limited","I7438765","932.92","Staff Advertising Costs","130201736","07/02/2018","The Hub","Central Advertising","R1700"
"Wolverhampton City Council","http://opendatacommunities.org/id/metropolitan-district-council/wolverhampton","705520","Midland News Association Limited","I7444167","445.22","Marketing \ Non-staff advertising","130203540","14/02/2018","Operation & Maintenance of Existing Network","UTC - Utilities Organisations","R4317"
"Wolverhampton City Council","http://opendatacommunities.org/id/metropolitan-district-council/wolverhampton","705520","Midland News Association Limited","I7449397","445.22","Marketing \ Non-staff advertising","130205310","28/02/2018","Operation & Maintenance of Existing Network","UTC - Utilities Organisations","R4317"
"Wolverhampton City Council","http://opendatacommunities.org/id/metropolitan-district-council/wolverhampton","705520","Midland News Association Limited","I7447659","247.34","Marketing \ Non-staff advertising","130204405","21/02/2018","Planning","Planning","R4317"
"Wolverhampton City Council","http://opendatacommunities.org/id/metropolitan-district-council/wolverhampton","705520","Midland News Association Limited","I7444729","593.64","Construction and Conversion","130203541","16/02/2018","-","Housing General Fund General Schemes - Empty Properties Strategy","C1100"
"Wolverhampton City Council","http://opendatacommunities.org/id/metropolitan-district-council/wolverhampton","705520","Midland News Association Limited","I7439003","643.10","Marketing \ Non-staff advertising","130202599","07/02/2018","Operation & Maintenance of Existing Network","UTC - Utilities Organisations","R4317"
"Wolverhampton City Council","http://opendatacommunities.org/id/metropolitan-district-council/wolverhampton","705525","Midland Quarry Products Limited","1980525771","3,018.54","Materials","130203861","21/02/2018","Highways Maintenance","Patching","R4007"
"Wolverhampton City Council","http://opendatacommunities.org/id/metropolitan-district-council/wolverhampton","705525","Midland Quarry Products Limited","1980527908","50.88","Materials","130204589","28/02/2018","Highways Maintenance","Patching","R4007"
"Wolverhampton City Council","http://opendatacommunities.org/id/metropolitan-district-council/wolverhampton","705525","Midland Quarry Products Limited","1980527910","28.54","Materials","130204591","28/02/2018","Highways Maintenance","Patching","R4007"
"Wolverhampton City Council","http://opendatacommunities.org/id/metropolitan-district-council/wolverhampton","705525","Midland Quarry Products Limited","1980523834","1,345.35","Materials","130202995","14/02/2018","Highways Maintenance","Patching","R4007"
"Wolverhampton City Council","http://opendatacommunities.org/id/metropolitan-district-council/wolverhampton","705525","Midland Quarry Products Limited","1980523833","70.00","Materials","130202994","14/02/2018","Highways Maintenance","Patching","R4007"
"Wolverhampton City Council","http://opendatacommunities.org/id/metropolitan-district-council/wolverhampton","705525","Midland Quarry Products Limited","1980523835","1,082.06","Materials","130202996","14/02/2018","Highways Maintenance","Patching","R4007"
"Wolverhampton City Council","http://opendatacommunities.org/id/metropolitan-district-council/wolverhampton","705525","Midland Quarry Products Limited","1980528874","2,720.26","Materials","130205089","28/02/2018","Highways Maintenance","Patching","R4007"
"Wolverhampton City Council","http://opendatacommunities.org/id/metropolitan-district-council/wolverhampton","705525","Midland Quarry Products Limited","1980526766","2,043.64","Materials","130204191","21/02/2018","Highways Maintenance","Patching","R4007"
"Wolverhampton City Council","http://opendatacommunities.org/id/metropolitan-district-council/wolverhampton","705525","Midland Quarry Products Limited","1980522017","2,378.27","Materials","130202104","07/02/2018","Highways Maintenance","Patching","R4007"
"Wolverhampton City Council","http://opendatacommunities.org/id/metropolitan-district-council/wolverhampton","705525","Midland Quarry Products Limited","1980523068","2,540.23","Materials","130202449","07/02/2018","Highways Maintenance","Patching","R4007"
"Wolverhampton City Council","http://opendatacommunities.org/id/metropolitan-district-council/wolverhampton","705525","Midland Quarry Products Limited","1980525772","663.30","Materials","130203862","21/02/2018","Highways Maintenance","Patching","R4007"
"Wolverhampton City Council","http://opendatacommunities.org/id/metropolitan-district-council/wolverhampton","705525","Midland Quarry Products Limited","1980524807","711.71","Materials","130203340","14/02/2018","Highways Maintenance","Patching","R4007"
"Wolverhampton City Council","http://opendatacommunities.org/id/metropolitan-district-council/wolverhampton","705525","Midland Quarry Products Limited","1980527911","630.27","Materials","130204592","28/02/2018","Highways Maintenance","Patching","R4007"
"Wolverhampton City Council","http://opendatacommunities.org/id/metropolitan-district-council/wolverhampton","705525","Midland Quarry Products Limited","1980524806","2,132.64","Materials","130203339","14/02/2018","Highways Maintenance","Patching","R4007"
"Wolverhampton City Council","http://opendatacommunities.org/id/metropolitan-district-council/wolverhampton","705525","Midland Quarry Products Limited","1980527909","2,267.26","Materials","130204590","28/02/2018","Highways Maintenance","Patching","R4007"
"Wolverhampton City Council","http://opendatacommunities.org/id/metropolitan-district-council/wolverhampton","705525","Midland Quarry Products Limited","1980522018","2,442.30","Materials","130202105","07/02/2018","Highways Maintenance","Patching","R4007"
"Wolverhampton City Council","http://opendatacommunities.org/id/metropolitan-district-council/wolverhampton","705534","Midlands Truck & Van Limited","8840866","-24.00","Equipment - Purchase","190426855","28/02/2018","Fleet Services","Fleet Management","R4000"
"Wolverhampton City Council","http://opendatacommunities.org/id/metropolitan-district-council/wolverhampton","705534","Midlands Truck & Van Limited","83604163","157.50","Services - Professional Fees","190428038","28/02/2018","Fleet Services","Fleet Management","R4400"
"Wolverhampton City Council","http://opendatacommunities.org/id/metropolitan-district-council/wolverhampton","705534","Midlands Truck & Van Limited","83604163","65.50","Services - Professional Fees","190428038","28/02/2018","Fleet Services","Fleet Management","R4400"
"Wolverhampton City Council","http://opendatacommunities.org/id/metropolitan-district-council/wolverhampton","705534","Midlands Truck & Van Limited","83604163","31.50","Services - Professional Fees","190428038","28/02/2018","Fleet Services","Fleet Management","R4400"
"Wolverhampton City Council","http://opendatacommunities.org/id/metropolitan-district-council/wolverhampton","705534","Midlands Truck & Van Limited","88428368","87.49","Equipment - Purchase","190421016","09/02/2018","Fleet Services","Fleet Management","R4000"
"Wolverhampton City Council","http://opendatacommunities.org/id/metropolitan-district-council/wolverhampton","705534","Midlands Truck & Van Limited","88428664","145.31","Equipment - Purchase","190421017","09/02/2018","Fleet Services","Fleet Management","R4000"
"Wolverhampton City Council","http://opendatacommunities.org/id/metropolitan-district-council/wolverhampton","705542","Midwest Electrical Services Limited","I09655","68.86","R&M - Departmental planned (external)","130204325","09/02/2018","Maintenance Programme","Centralised R&M","R2001"
"Wolverhampton City Council","http://opendatacommunities.org/id/metropolitan-district-council/wolverhampton","705542","Midwest Electrical Services Limited","I15042","5,800.00","R&M - Departmental planned (external)","130201074","07/02/2018","Corporate Asset Management","Centralised Planned Maintenance","R2001"
"Wolverhampton City Council","http://opendatacommunities.org/id/metropolitan-district-council/wolverhampton","705542","Midwest Electrical Services Limited","I11233","30.18","R&M - Departmental planned (external)","130204309","02/02/2018","Schools","Pupil Referral Units - Mid Point","R2001"
"Wolverhampton City Council","http://opendatacommunities.org/id/metropolitan-district-council/wolverhampton","705542","Midwest Electrical Services Limited","I11226","145.87","R&M - Departmental planned (external)","130204302","02/02/2018","Maintenance Programme","Centralised R&M","R2001"
"Wolverhampton City Council","http://opendatacommunities.org/id/metropolitan-district-council/wolverhampton","705542","Midwest Electrical Services Limited","I11236","61.83","R&M - Departmental planned (external)","130204294","02/02/2018","Maintenance Programme","Centralised R&M","R2001"
"Wolverhampton City Council","http://opendatacommunities.org/id/metropolitan-district-council/wolverhampton","705542","Midwest Electrical Services Limited","I12408","80.66","R&M - Departmental planned (external)","130204284","02/02/2018","Bereavement Services","Cemeteries","R2001"
"Wolverhampton City Council","http://opendatacommunities.org/id/metropolitan-district-council/wolverhampton","705542","Midwest Electrical Services Limited","I12418","42.86","R&M - Departmental planned (external)","130204279","02/02/2018","Adult Education","Foyer Building","R2001"
"Wolverhampton City Council","http://opendatacommunities.org/id/metropolitan-district-council/wolverhampton","705542","Midwest Electrical Services Limited","I12377","32.15","R&M - Departmental planned (external)","130204300","02/02/2018","Maintenance Programme","Centralised R&M","R2001"
"Wolverhampton City Council","http://opendatacommunities.org/id/metropolitan-district-council/wolverhampton","705542","Midwest Electrical Services Limited","I12379","52.05","R&M - Departmental planned (external)","130204301","02/02/2018","Maintenance Programme","Centralised R&M","R2001"
"Wolverhampton City Council","http://opendatacommunities.org/id/metropolitan-district-council/wolverhampton","705542","Midwest Electrical Services Limited","I11225","208.74","R&M - Departmental planned (external)","130204319","02/02/2018","Maintenance Programme","Centralised R&M","R2001"
"Wolverhampton City Council","http://opendatacommunities.org/id/metropolitan-district-council/wolverhampton","705542","Midwest Electrical Services Limited","I12411","71.73","R&M - Departmental planned (external)","130204288","02/02/2018","Maintenance Programme","Centralised R&M","R2001"
"Wolverhampton City Council","http://opendatacommunities.org/id/metropolitan-district-council/wolverhampton","705542","Midwest Electrical Services Limited","I15250","35.99","R&M - Departmental planned (external)","130203867","21/02/2018","Maintenance Programme","Centralised R&M","R2001"
"Wolverhampton City Council","http://opendatacommunities.org/id/metropolitan-district-council/wolverhampton","705542","Midwest Electrical Services Limited","I15114","23.89","R&M - Departmental planned (external)","130203112","09/02/2018","Maintenance Programme","Centralised R&M","R2001"
"Wolverhampton City Council","http://opendatacommunities.org/id/metropolitan-district-council/wolverhampton","705542","Midwest Electrical Services Limited","I09658","50.76","R&M - Departmental planned (external)","130204327","09/02/2018","Maintenance Programme","Centralised R&M","R2001"
"Wolverhampton City Council","http://opendatacommunities.org/id/metropolitan-district-council/wolverhampton","705542","Midwest Electrical Services Limited","I15235","51.49","R&M - Departmental planned (external)","130203709","21/02/2018","Maintenance Programme","Centralised R&M","R2001"
"Wolverhampton City Council","http://opendatacommunities.org/id/metropolitan-district-council/wolverhampton","705542","Midwest Electrical Services Limited","I15129","37.07","R&M - Departmental planned (external)","130202602","14/02/2018","Maintenance Programme","Centralised R&M","R2001"
"Wolverhampton City Council","http://opendatacommunities.org/id/metropolitan-district-council/wolverhampton","705542","Midwest Electrical Services Limited","I15128","23.89","R&M - Departmental planned (external)","130202601","14/02/2018","Facilities Management","Caretakers Community Centre","R2001"
"Wolverhampton City Council","http://opendatacommunities.org/id/metropolitan-district-council/wolverhampton","705542","Midwest Electrical Services Limited","I15310","152.31","R&M - Departmental planned (external)","130204593","28/02/2018","Maintenance Programme","Centralised R&M","R2001"
"Wolverhampton City Council","http://opendatacommunities.org/id/metropolitan-district-council/wolverhampton","705542","Midwest Electrical Services Limited","I09756","37.39","R&M - Departmental planned (external)","130204314","28/02/2018","Maintenance Programme","Centralised R&M","R2001"
"Wolverhampton City Council","http://opendatacommunities.org/id/metropolitan-district-council/wolverhampton","705542","Midwest Electrical Services Limited","I11248","123.66","R&M - Departmental planned (external)","130207164","28/02/2018","Maintenance Programme","Centralised R&M","R2001"
"Wolverhampton City Council","http://opendatacommunities.org/id/metropolitan-district-council/wolverhampton","705542","Midwest Electrical Services Limited","I15455","23.89","R&M - Departmental planned (external)","130206490","28/02/2018","Maintenance Programme","Centralised R&M","R2001"
"Wolverhampton City Council","http://opendatacommunities.org/id/metropolitan-district-council/wolverhampton","705542","Midwest Electrical Services Limited","I15422","29.13","R&M - Departmental planned (external)","130206184","28/02/2018","Maintenance Programme","Centralised R&M","R2001"
"Wolverhampton City Council","http://opendatacommunities.org/id/metropolitan-district-council/wolverhampton","705542","Midwest Electrical Services Limited","I15448","343.04","R&M - Departmental planned (external)","130206342","28/02/2018","Maintenance Programme","Centralised R&M","R2001"
"Wolverhampton City Council","http://opendatacommunities.org/id/metropolitan-district-council/wolverhampton","705542","Midwest Electrical Services Limited","I15449","57.73","R&M - Departmental planned (external)","130206343","28/02/2018","Maintenance Programme","Centralised R&M","R2001"
"Wolverhampton City Council","http://opendatacommunities.org/id/metropolitan-district-council/wolverhampton","705542","Midwest Electrical Services Limited","I15340","650.00","R&M - Departmental planned (external)","130205313","28/02/2018","Maintenance Programme","Centralised R&M","R2001"
"Wolverhampton City Council","http://opendatacommunities.org/id/metropolitan-district-council/wolverhampton","705542","Midwest Electrical Services Limited","I15375","59.44","R&M - Departmental planned (external)","130205839","28/02/2018","Facilities Management","Bilston Town Hall","R2001"
"Wolverhampton City Council","http://opendatacommunities.org/id/metropolitan-district-council/wolverhampton","705542","Midwest Electrical Services Limited","I15382","23.89","R&M - Departmental planned (external)","130205845","28/02/2018","Markets","Bilston Market and Licensed Operations","R2001"
"Wolverhampton City Council","http://opendatacommunities.org/id/metropolitan-district-council/wolverhampton","705542","Midwest Electrical Services Limited","I15416","108.82","R&M - Departmental planned (external)","130206178","28/02/2018","Facilities Management","Caretakers Community Centre","R2001"
"Wolverhampton City Council","http://opendatacommunities.org/id/metropolitan-district-council/wolverhampton","705542","Midwest Electrical Services Limited","I15421","64.01","R&M - Departmental planned (external)","130206183","28/02/2018","Markets","Bilston Market and Licensed Operations","R2001"
"Wolverhampton City Council","http://opendatacommunities.org/id/metropolitan-district-council/wolverhampton","705542","Midwest Electrical Services Limited","I15302","220.00","R&M - Departmental planned (external)","130204410","28/02/2018","Maintenance Programme","Centralised R&M","R2001"
"Wolverhampton City Council","http://opendatacommunities.org/id/metropolitan-district-council/wolverhampton","705542","Midwest Electrical Services Limited","I15373","43.23","R&M - Departmental planned (external)","130205837","28/02/2018","Markets","Wholesale Market Facilities Management","R2001"
"Wolverhampton City Council","http://opendatacommunities.org/id/metropolitan-district-council/wolverhampton","705542","Midwest Electrical Services Limited","I15154","575.00","R&M - Departmental planned (external)","130202742","14/02/2018","Maintenance Programme","Centralised R&M","R2001"
"Wolverhampton City Council","http://opendatacommunities.org/id/metropolitan-district-council/wolverhampton","705542","Midwest Electrical Services Limited","I15158","48.82","R&M - Departmental planned (external)","130203341","14/02/2018","Maintenance Programme","Centralised R&M","R2001"
"Wolverhampton City Council","http://opendatacommunities.org/id/metropolitan-district-council/wolverhampton","705542","Midwest Electrical Services Limited","I10302","67.66","R&M - Departmental planned (external)","130207165","23/02/2018","Cleaning","Priory Green","R2001"
"Wolverhampton City Council","http://opendatacommunities.org/id/metropolitan-district-council/wolverhampton","705542","Midwest Electrical Services Limited","I15272","469.68","R&M - Departmental planned (external)","130204192","23/02/2018","Maintenance Programme","Centralised R&M","R2001"
"Wolverhampton City Council","http://opendatacommunities.org/id/metropolitan-district-council/wolverhampton","705542","Midwest Electrical Services Limited","I15289","26.88","R&M - Departmental planned (external)","130204406","23/02/2018","Facilities Management","Magistrates","R2001"
"Wolverhampton City Council","http://opendatacommunities.org/id/metropolitan-district-council/wolverhampton","705542","Midwest Electrical Services Limited","I15233","318.75","R&M - Departmental planned (external)","130203708","21/02/2018","Central Corporate Budgets","Miscellaneous Corporate Costs","R2001"
"Wolverhampton City Council","http://opendatacommunities.org/id/metropolitan-district-council/wolverhampton","705542","Midwest Electrical Services Limited","I15304","456.54","R&M - Departmental planned (external)","130204412","28/02/2018","Facilities Management","Magistrates","R2001"
"Wolverhampton City Council","http://opendatacommunities.org/id/metropolitan-district-council/wolverhampton","705542","Midwest Electrical Services Limited","I15453","110.26","R&M - Departmental planned (external)","130207096","28/02/2018","Facilities Management","Caretakers Community Centre","R2001"
"Wolverhampton City Council","http://opendatacommunities.org/id/metropolitan-district-council/wolverhampton","705542","Midwest Electrical Services Limited","I09652","60.37","R&M - Departmental planned (external)","130204322","28/02/2018","Maintenance Programme","Centralised R&M","R2001"
"Wolverhampton City Council","http://opendatacommunities.org/id/metropolitan-district-council/wolverhampton","705542","Midwest Electrical Services Limited","I15459","57.77","R&M - Departmental planned (external)","130206494","28/02/2018","Facilities Management","Bilston Town Hall","R2001"
"Wolverhampton City Council","http://opendatacommunities.org/id/metropolitan-district-council/wolverhampton","705542","Midwest Electrical Services Limited","I15454","119.44","R&M - Departmental planned (external)","130206489","28/02/2018","Facilities Management","Hickman Avenue Depot","R2001"
"Wolverhampton City Council","http://opendatacommunities.org/id/metropolitan-district-council/wolverhampton","705542","Midwest Electrical Services Limited","I14134","128.58","R&M - Departmental planned (external)","130207507","28/02/2018","Revenues & Benefits","Revenues","R2001"
"Wolverhampton City Council","http://opendatacommunities.org/id/metropolitan-district-council/wolverhampton","705542","Midwest Electrical Services Limited","I15384","221.14","R&M - Departmental planned (external)","130205846","28/02/2018","Maintenance Programme","Centralised R&M","R2001"
"Wolverhampton City Council","http://opendatacommunities.org/id/metropolitan-district-council/wolverhampton","705542","Midwest Electrical Services Limited","I15379","47.62","R&M - Departmental planned (external)","130205843","28/02/2018","Maintenance Programme","Centralised R&M","R2001"
"Wolverhampton City Council","http://opendatacommunities.org/id/metropolitan-district-council/wolverhampton","705542","Midwest Electrical Services Limited","I15303","343.65","R&M - Departmental planned (external)","130204411","28/02/2018","Bereavement Services","Cemeteries","R2001"
"Wolverhampton City Council","http://opendatacommunities.org/id/metropolitan-district-council/wolverhampton","705542","Midwest Electrical Services Limited","I15301","80.81","R&M - Departmental planned (external)","130204409","28/02/2018","Maintenance Programme","Centralised R&M","R2001"
"Wolverhampton City Council","http://opendatacommunities.org/id/metropolitan-district-council/wolverhampton","705542","Midwest Electrical Services Limited","I15381","23.89","R&M - Departmental planned (external)","130205844","28/02/2018","Maintenance Programme","Centralised R&M","R2001"
"Wolverhampton City Council","http://opendatacommunities.org/id/metropolitan-district-council/wolverhampton","705542","Midwest Electrical Services Limited","I15451","29.86","R&M - Departmental planned (external)","130206344","28/02/2018","Maintenance Programme","Centralised R&M","R2001"
"Wolverhampton City Council","http://opendatacommunities.org/id/metropolitan-district-council/wolverhampton","705542","Midwest Electrical Services Limited","I15383","23.89","R&M - Departmental planned (external)","130206340","28/02/2018","Maintenance Programme","Centralised R&M","R2001"
"Wolverhampton City Council","http://opendatacommunities.org/id/metropolitan-district-council/wolverhampton","705542","Midwest Electrical Services Limited","I15414","64.83","R&M - Departmental planned (external)","130206176","28/02/2018","Maintenance Programme","Centralised R&M","R2001"
"Wolverhampton City Council","http://opendatacommunities.org/id/metropolitan-district-council/wolverhampton","705542","Midwest Electrical Services Limited","I15156","38.66","R&M - Departmental planned (external)","130202744","14/02/2018","Maintenance Programme","Centralised R&M","R2001"
"Wolverhampton City Council","http://opendatacommunities.org/id/metropolitan-district-council/wolverhampton","705542","Midwest Electrical Services Limited","I15159","198.17","R&M - Departmental planned (external)","130202746","14/02/2018","Maintenance Programme","Centralised R&M","R2001"
"Wolverhampton City Council","http://opendatacommunities.org/id/metropolitan-district-council/wolverhampton","705542","Midwest Electrical Services Limited","I15155","71.23","R&M - Departmental planned (external)","130202743","14/02/2018","Facilities Management","Magistrates","R2001"
"Wolverhampton City Council","http://opendatacommunities.org/id/metropolitan-district-council/wolverhampton","705542","Midwest Electrical Services Limited","I15131","23.89","R&M - Departmental planned (external)","130202459","14/02/2018","Markets","Bilston Market and Licensed Operations","R2001"
"Wolverhampton City Council","http://opendatacommunities.org/id/metropolitan-district-council/wolverhampton","705542","Midwest Electrical Services Limited","I14162","37.26","R&M - Departmental planned (external)","130206175","16/02/2018","Skills","Connexions Contract","R2001"
"Wolverhampton City Council","http://opendatacommunities.org/id/metropolitan-district-council/wolverhampton","705542","Midwest Electrical Services Limited","I15207","927.90","R&M - Departmental planned (internal)","130203705","21/02/2018","Corporate Asset Management","Future Space Decant Area","R2000"
"Wolverhampton City Council","http://opendatacommunities.org/id/metropolitan-district-council/wolverhampton","705542","Midwest Electrical Services Limited","I15220","54.80","R&M - Departmental planned (external)","130203863","21/02/2018","Central Corporate Budgets","Miscellaneous Corporate Costs","R2001"
"Wolverhampton City Council","http://opendatacommunities.org/id/metropolitan-district-council/wolverhampton","705542","Midwest Electrical Services Limited","I09654","46.44","R&M - Departmental planned (external)","130204324","23/02/2018","Maintenance Programme","Centralised R&M","R2001"
"Wolverhampton City Council","http://opendatacommunities.org/id/metropolitan-district-council/wolverhampton","705542","Midwest Electrical Services Limited","I15290","29.19","R&M - Departmental planned (external)","130204407","23/02/2018","Schools","Pupil Referral Units - Orchard Centre","R2001"
"Wolverhampton City Council","http://opendatacommunities.org/id/metropolitan-district-council/wolverhampton","705542","Midwest Electrical Services Limited","I15276","570.00","R&M - Departmental planned (external)","130204194","23/02/2018","Maintenance Programme","Centralised R&M","R2001"
"Wolverhampton City Council","http://opendatacommunities.org/id/metropolitan-district-council/wolverhampton","705542","Midwest Electrical Services Limited","I14966","2,602.64","R&M - Departmental planned (external)","130199791","07/02/2018","Maintenance Programme","Centralised R&M","R2001"
"Wolverhampton City Council","http://opendatacommunities.org/id/metropolitan-district-council/wolverhampton","705542","Midwest Electrical Services Limited","I11229","33.53","R&M - Departmental planned (external)","130204305","02/02/2018","Maintenance Programme","Centralised R&M","R2001"
"Wolverhampton City Council","http://opendatacommunities.org/id/metropolitan-district-council/wolverhampton","705542","Midwest Electrical Services Limited","I11230","53.53","R&M - Departmental planned (external)","130204306","02/02/2018","Maintenance Programme","Centralised R&M","R2001"
"Wolverhampton City Council","http://opendatacommunities.org/id/metropolitan-district-council/wolverhampton","705542","Midwest Electrical Services Limited","I12413","82.24","R&M - Departmental planned (external)","130204290","02/02/2018","Maintenance Programme","Centralised R&M","R2001"
"Wolverhampton City Council","http://opendatacommunities.org/id/metropolitan-district-council/wolverhampton","705542","Midwest Electrical Services Limited","I12415","21.43","R&M - Departmental planned (external)","130204292","02/02/2018","Maintenance Programme","Centralised R&M","R2001"
"Wolverhampton City Council","http://opendatacommunities.org/id/metropolitan-district-council/wolverhampton","705542","Midwest Electrical Services Limited","I12409","217.49","R&M - Departmental planned (external)","130204285","02/02/2018","Maintenance Programme","Centralised R&M","R2001"
"Wolverhampton City Council","http://opendatacommunities.org/id/metropolitan-district-council/wolverhampton","705542","Midwest Electrical Services Limited","I10634","178.74","R&M - Departmental planned (external)","130204317","02/02/2018","Adult Education","Old Hall Street Main","R2001"
"Wolverhampton City Council","http://opendatacommunities.org/id/metropolitan-district-council/wolverhampton","705542","Midwest Electrical Services Limited","I10615","30.31","R&M - Departmental planned (external)","130204316","02/02/2018","Facilities Management","Old Town Hall (Others)","R2001"
"Wolverhampton City Council","http://opendatacommunities.org/id/metropolitan-district-council/wolverhampton","705542","Midwest Electrical Services Limited","I09650","68.86","R&M - Departmental planned (external)","130204320","02/02/2018","Visitor Economy","Maintenance & Technical Materials","R2001"
"Wolverhampton City Council","http://opendatacommunities.org/id/metropolitan-district-council/wolverhampton","705542","Midwest Electrical Services Limited","I11235","111.05","R&M - Departmental planned (external)","130204310","02/02/2018","Bereavement Services","Cemeteries","R2001"
"Wolverhampton City Council","http://opendatacommunities.org/id/metropolitan-district-council/wolverhampton","705542","Midwest Electrical Services Limited","I15113","53.14","R&M - Departmental planned (external)","130203111","09/02/2018","Skills","Connexions Contract","R2001"
"Wolverhampton City Council","http://opendatacommunities.org/id/metropolitan-district-council/wolverhampton","705542","Midwest Electrical Services Limited","I15119","393.16","R&M - Departmental planned (external)","130203116","09/02/2018","Maintenance Programme","Centralised R&M","R2001"
"Wolverhampton City Council","http://opendatacommunities.org/id/metropolitan-district-council/wolverhampton","705542","Midwest Electrical Services Limited","I15224","103.19","R&M - Departmental planned (external)","130203706","21/02/2018","Central Corporate Budgets","Miscellaneous Corporate Costs","R2001"
"Wolverhampton City Council","http://opendatacommunities.org/id/metropolitan-district-council/wolverhampton","705542","Midwest Electrical Services Limited","I15254","58.84","R&M - Departmental planned (external)","130203869","21/02/2018","Facilities Management","Victoria Square, Block 11","R2001"
"Wolverhampton City Council","http://opendatacommunities.org/id/metropolitan-district-council/wolverhampton","705542","Midwest Electrical Services Limited","I12938","34.43","R&M - Departmental planned (external)","130204281","09/02/2018","Maintenance Programme","Centralised R&M","R2001"
"Wolverhampton City Council","http://opendatacommunities.org/id/metropolitan-district-council/wolverhampton","705542","Midwest Electrical Services Limited","I12940","53.58","R&M - Departmental planned (external)","130204108","09/02/2018","Maintenance Programme","Centralised R&M","R2001"
"Wolverhampton City Council","http://opendatacommunities.org/id/metropolitan-district-council/wolverhampton","705542","Midwest Electrical Services Limited","I15118","47.78","R&M - Departmental planned (external)","130203115","09/02/2018","Maintenance Programme","Centralised R&M","R2001"
"Wolverhampton City Council","http://opendatacommunities.org/id/metropolitan-district-council/wolverhampton","705542","Midwest Electrical Services Limited","I15116","106.92","R&M - Departmental planned (external)","130202453","09/02/2018","Facilities Management","Caretakers Community Centre","R2001"
"Wolverhampton City Council","http://opendatacommunities.org/id/metropolitan-district-council/wolverhampton","705542","Midwest Electrical Services Limited","I09659","90.43","R&M - Departmental planned (external)","130204328","02/02/2018","Facilities Management","Victoria Square, Block 11","R2001"
"Wolverhampton City Council","http://opendatacommunities.org/id/metropolitan-district-council/wolverhampton","705542","Midwest Electrical Services Limited","I09832","784.24","R&M - Departmental planned (external)","130204315","02/02/2018","Maintenance Programme","Centralised R&M","R2001"
"Wolverhampton City Council","http://opendatacommunities.org/id/metropolitan-district-council/wolverhampton","705542","Midwest Electrical Services Limited","I12419","21.43","R&M - Departmental planned (external)","130204107","02/02/2018","Maintenance Programme","Centralised R&M","R2001"
"Wolverhampton City Council","http://opendatacommunities.org/id/metropolitan-district-council/wolverhampton","705542","Midwest Electrical Services Limited","I11782","37.93","R&M - Departmental planned (external)","130204299","02/02/2018","Markets","Bilston Market and Licensed Operations","R2001"
"Wolverhampton City Council","http://opendatacommunities.org/id/metropolitan-district-council/wolverhampton","705542","Midwest Electrical Services Limited","I11228","31.69","R&M - Departmental planned (external)","130204304","02/02/2018","Maintenance Programme","Centralised R&M","R2001"
"Wolverhampton City Council","http://opendatacommunities.org/id/metropolitan-district-council/wolverhampton","705542","Midwest Electrical Services Limited","I11231","23.50","R&M - Departmental planned (external)","130204307","02/02/2018","Maintenance Programme","Centralised R&M","R2001"
"Wolverhampton City Council","http://opendatacommunities.org/id/metropolitan-district-council/wolverhampton","705542","Midwest Electrical Services Limited","I11232","69.43","R&M - Departmental planned (external)","130204308","02/02/2018","Maintenance Programme","Centralised R&M","R2001"
"Wolverhampton City Council","http://opendatacommunities.org/id/metropolitan-district-council/wolverhampton","705542","Midwest Electrical Services Limited","I12417","205.10","R&M - Departmental planned (external)","130204278","02/02/2018","Markets","Bilston Market and Licensed Operations","R2001"
"Wolverhampton City Council","http://opendatacommunities.org/id/metropolitan-district-council/wolverhampton","705542","Midwest Electrical Services Limited","I15245","45.94","R&M - Departmental planned (external)","130203864","21/02/2018","Facilities Management","Magistrates","R2001"
"Wolverhampton City Council","http://opendatacommunities.org/id/metropolitan-district-council/wolverhampton","705542","Midwest Electrical Services Limited","I15236","33.84","R&M - Departmental planned (external)","130203710","21/02/2018","Maintenance Programme","Centralised R&M","R2001"
"Wolverhampton City Council","http://opendatacommunities.org/id/metropolitan-district-council/wolverhampton","705542","Midwest Electrical Services Limited","I15252","219.81","R&M - Departmental planned (external)","130203868","21/02/2018","Markets","Wholesale Market Facilities Management","R2001"
"Wolverhampton City Council","http://opendatacommunities.org/id/metropolitan-district-council/wolverhampton","705542","Midwest Electrical Services Limited","I09705","26.67","R&M - Departmental planned (external)","130204312","23/02/2018","Maintenance Programme","Centralised R&M","R2001"
"Wolverhampton City Council","http://opendatacommunities.org/id/metropolitan-district-council/wolverhampton","705542","Midwest Electrical Services Limited","I09657","125.73","R&M - Departmental planned (external)","130204283","23/02/2018","Maintenance Programme","Centralised R&M","R2001"
"Wolverhampton City Council","http://opendatacommunities.org/id/metropolitan-district-council/wolverhampton","705542","Midwest Electrical Services Limited","I15186","1,378.00","R&M - Departmental planned (external)","130203342","16/02/2018","Maintenance Programme","Centralised R&M","R2001"
"Wolverhampton City Council","http://opendatacommunities.org/id/metropolitan-district-council/wolverhampton","705542","Midwest Electrical Services Limited","I15275","880.00","R&M - Departmental planned (external)","130204193","23/02/2018","Maintenance Programme","Centralised R&M","R2001"
"Wolverhampton City Council","http://opendatacommunities.org/id/metropolitan-district-council/wolverhampton","705542","Midwest Electrical Services Limited","I15378","325.00","R&M - Departmental planned (external)","130205842","28/02/2018","Maintenance Programme","Civic Centre Repairs & Maintenance","R2001"
"Wolverhampton City Council","http://opendatacommunities.org/id/metropolitan-district-council/wolverhampton","705542","Midwest Electrical Services Limited","I15306","432.78","R&M - Departmental planned (external)","130204413","28/02/2018","Maintenance Programme","Centralised R&M","R2001"
"Wolverhampton City Council","http://opendatacommunities.org/id/metropolitan-district-council/wolverhampton","705542","Midwest Electrical Services Limited","I15337","1,430.00","R&M - Departmental planned (external)","130205312","28/02/2018","Maintenance Programme","Civic Centre Repairs & Maintenance","R2001"
"Wolverhampton City Council","http://opendatacommunities.org/id/metropolitan-district-council/wolverhampton","705542","Midwest Electrical Services Limited","I15307","55.32","R&M - Departmental planned (external)","130204414","28/02/2018","Maintenance Programme","Centralised R&M","R2001"
"Wolverhampton City Council","http://opendatacommunities.org/id/metropolitan-district-council/wolverhampton","705542","Midwest Electrical Services Limited","I15308","76.70","R&M - Departmental planned (external)","130204415","28/02/2018","Markets","Bilston Market and Licensed Operations","R2001"
"Wolverhampton City Council","http://opendatacommunities.org/id/metropolitan-district-council/wolverhampton","705542","Midwest Electrical Services Limited","I15418","145.90","R&M - Departmental planned (external)","130206180","28/02/2018","Facilities Management","Bilston Town Hall","R2001"
"Wolverhampton City Council","http://opendatacommunities.org/id/metropolitan-district-council/wolverhampton","705542","Midwest Electrical Services Limited","I15424","88.34","R&M - Departmental planned (external)","130206186","28/02/2018","Bereavement Services","Cemeteries","R2001"
"Wolverhampton City Council","http://opendatacommunities.org/id/metropolitan-district-council/wolverhampton","705542","Midwest Electrical Services Limited","I15312","184.26","R&M - Departmental planned (external)","130204418","28/02/2018","Maintenance Programme","Centralised R&M","R2001"
"Wolverhampton City Council","http://opendatacommunities.org/id/metropolitan-district-council/wolverhampton","705542","Midwest Electrical Services Limited","I15313","108.79","R&M - Departmental planned (external)","130204419","28/02/2018","Maintenance Programme","Centralised R&M","R2001"
"Wolverhampton City Council","http://opendatacommunities.org/id/metropolitan-district-council/wolverhampton","705542","Midwest Electrical Services Limited","I15309","94.38","R&M - Departmental planned (external)","130204416","28/02/2018","Maintenance Programme","Centralised R&M","R2001"
"Wolverhampton City Council","http://opendatacommunities.org/id/metropolitan-district-council/wolverhampton","705542","Midwest Electrical Services Limited","I09653","41.53","R&M - Departmental planned (external)","130204323","28/02/2018","Maintenance Programme","Centralised R&M","R2001"
"Wolverhampton City Council","http://opendatacommunities.org/id/metropolitan-district-council/wolverhampton","705542","Midwest Electrical Services Limited","I15452","83.62","R&M - Departmental planned (external)","130206345","28/02/2018","Maintenance Programme","Centralised R&M","R2001"
"Wolverhampton City Council","http://opendatacommunities.org/id/metropolitan-district-council/wolverhampton","705542","Midwest Electrical Services Limited","I15420","23.89","R&M - Departmental planned (external)","130206182","28/02/2018","Maintenance Programme","Centralised R&M","R2001"
"Wolverhampton City Council","http://opendatacommunities.org/id/metropolitan-district-council/wolverhampton","705542","Midwest Electrical Services Limited","I15447","29.00","R&M - Departmental planned (external)","130206341","28/02/2018","Maintenance Programme","Centralised R&M","R2001"
"Wolverhampton City Council","http://opendatacommunities.org/id/metropolitan-district-council/wolverhampton","705542","Midwest Electrical Services Limited","I15132","108.18","R&M - Departmental planned (external)","130203117","14/02/2018","Maintenance Programme","Centralised R&M","R2001"
"Wolverhampton City Council","http://opendatacommunities.org/id/metropolitan-district-council/wolverhampton","705542","Midwest Electrical Services Limited","I15127","739.04","R&M - Departmental planned (external)","130202600","14/02/2018","Facilities Management","i10 Facilities Management","R2001"
"Wolverhampton City Council","http://opendatacommunities.org/id/metropolitan-district-council/wolverhampton","705542","Midwest Electrical Services Limited","I15152","35.99","R&M - Departmental planned (external)","130202740","14/02/2018","Maintenance Programme","Centralised R&M","R2001"
"Wolverhampton City Council","http://opendatacommunities.org/id/metropolitan-district-council/wolverhampton","705542","Midwest Electrical Services Limited","I15157","56.58","R&M - Departmental planned (external)","130202745","14/02/2018","Maintenance Programme","Centralised R&M","R2001"
"Wolverhampton City Council","http://opendatacommunities.org/id/metropolitan-district-council/wolverhampton","705542","Midwest Electrical Services Limited","I12942","21.43","R&M - Departmental planned (external)","130204277","16/02/2018","Maintenance Programme","Centralised R&M","R2001"
"Wolverhampton City Council","http://opendatacommunities.org/id/metropolitan-district-council/wolverhampton","705542","Midwest Electrical Services Limited","I09706","115.90","R&M - Departmental planned (external)","130204313","23/02/2018","Maintenance Programme","Centralised R&M","R2001"
"Wolverhampton City Council","http://opendatacommunities.org/id/metropolitan-district-council/wolverhampton","705542","Midwest Electrical Services Limited","I15229","450.00","Construction and Conversion","130203707","21/02/2018","-","Primary Expansion Programme","C1100"
"Wolverhampton City Council","http://opendatacommunities.org/id/metropolitan-district-council/wolverhampton","705542","Midwest Electrical Services Limited","I15248","568.00","R&M - Departmental planned (external)","130203866","21/02/2018","Maintenance Programme","Centralised R&M","R2001"
"Wolverhampton City Council","http://opendatacommunities.org/id/metropolitan-district-council/wolverhampton","705542","Midwest Electrical Services Limited","I09651","34.43","R&M - Departmental planned (external)","130204321","23/02/2018","Maintenance Programme","Centralised R&M","R2001"
"Wolverhampton City Council","http://opendatacommunities.org/id/metropolitan-district-council/wolverhampton","705542","Midwest Electrical Services Limited","I15377","182.32","R&M - Departmental planned (external)","130205841","28/02/2018","Maintenance Programme","Centralised R&M","R2001"
"Wolverhampton City Council","http://opendatacommunities.org/id/metropolitan-district-council/wolverhampton","705542","Midwest Electrical Services Limited","I15423","23.89","R&M - Departmental planned (external)","130206185","28/02/2018","Facilities Management","Caretakers Community Centre","R2001"
"Wolverhampton City Council","http://opendatacommunities.org/id/metropolitan-district-council/wolverhampton","705542","Midwest Electrical Services Limited","I15380","30.48","R&M - Departmental planned (external)","130206339","28/02/2018","Facilities Management","Magistrates","R2001"
"Wolverhampton City Council","http://opendatacommunities.org/id/metropolitan-district-council/wolverhampton","705542","Midwest Electrical Services Limited","I15456","196.51","R&M - Departmental planned (external)","130206491","28/02/2018","Bereavement Services","Cemeteries","R2001"
"Wolverhampton City Council","http://opendatacommunities.org/id/metropolitan-district-council/wolverhampton","705542","Midwest Electrical Services Limited","I15456","80.40","R&M - Departmental planned (external)","130206491","28/02/2018","Bereavement Services","Cemeteries","R2001"
"Wolverhampton City Council","http://opendatacommunities.org/id/metropolitan-district-council/wolverhampton","705542","Midwest Electrical Services Limited","I15305","382.24","R&M - Departmental planned (external)","130204755","28/02/2018","Maintenance Programme","Centralised R&M","R2001"
"Wolverhampton City Council","http://opendatacommunities.org/id/metropolitan-district-council/wolverhampton","705542","Midwest Electrical Services Limited","I15311","100.30","R&M - Departmental planned (external)","130204417","28/02/2018","Maintenance Programme","Centralised R&M","R2001"
"Wolverhampton City Council","http://opendatacommunities.org/id/metropolitan-district-council/wolverhampton","705542","Midwest Electrical Services Limited","I15374","23.89","R&M - Departmental planned (external)","130205838","28/02/2018","Maintenance Programme","Centralised R&M","R2001"
"Wolverhampton City Council","http://opendatacommunities.org/id/metropolitan-district-council/wolverhampton","705542","Midwest Electrical Services Limited","I15376","66.78","R&M - Departmental planned (external)","130205840","28/02/2018","Facilities Management","Old Town Hall (Others)","R2001"
"Wolverhampton City Council","http://opendatacommunities.org/id/metropolitan-district-council/wolverhampton","705542","Midwest Electrical Services Limited","I15417","121.42","R&M - Departmental planned (external)","130206179","28/02/2018","Maintenance Programme","Centralised R&M","R2001"
"Wolverhampton City Council","http://opendatacommunities.org/id/metropolitan-district-council/wolverhampton","705542","Midwest Electrical Services Limited","I15415","129.96","R&M - Departmental planned (external)","130206177","28/02/2018","Maintenance Programme","Centralised R&M","R2001"
"Wolverhampton City Council","http://opendatacommunities.org/id/metropolitan-district-council/wolverhampton","705542","Midwest Electrical Services Limited","I15457","47.76","R&M - Departmental planned (external)","130206492","28/02/2018","Maintenance Programme","Centralised R&M","R2001"
"Wolverhampton City Council","http://opendatacommunities.org/id/metropolitan-district-council/wolverhampton","705542","Midwest Electrical Services Limited","I15458","57.93","R&M - Departmental planned (external)","130206493","28/02/2018","Maintenance Programme","Centralised R&M","R2001"
"Wolverhampton City Council","http://opendatacommunities.org/id/metropolitan-district-council/wolverhampton","705542","Midwest Electrical Services Limited","I15130","71.67","R&M - Departmental planned (external)","130202458","14/02/2018","Facilities Management","Magistrates","R2001"
"Wolverhampton City Council","http://opendatacommunities.org/id/metropolitan-district-council/wolverhampton","705542","Midwest Electrical Services Limited","I15151","35.84","R&M - Departmental planned (external)","130202739","14/02/2018","Maintenance Programme","Centralised R&M","R2001"
"Wolverhampton City Council","http://opendatacommunities.org/id/metropolitan-district-council/wolverhampton","705542","Midwest Electrical Services Limited","I15150","680.00","Construction and Conversion","130202738","14/02/2018","-","Black Country Growth Deal � Cultural Programme","C1100"
"Wolverhampton City Council","http://opendatacommunities.org/id/metropolitan-district-council/wolverhampton","705542","Midwest Electrical Services Limited","I15153","148.73","R&M - Departmental planned (external)","130202741","14/02/2018","Maintenance Programme","Centralised R&M","R2001"
"Wolverhampton City Council","http://opendatacommunities.org/id/metropolitan-district-council/wolverhampton","705542","Midwest Electrical Services Limited","I15300","88.21","R&M - Departmental planned (external)","130204408","28/02/2018","Facilities Management","Caretakers Community Centre","R2001"
"Wolverhampton City Council","http://opendatacommunities.org/id/metropolitan-district-council/wolverhampton","705542","Midwest Electrical Services Limited","I14993","1,324.00","R&M - Departmental planned (external)","130199794","28/02/2018","Maintenance Programme","Centralised R&M","R2001"
"Wolverhampton City Council","http://opendatacommunities.org/id/metropolitan-district-council/wolverhampton","705542","Midwest Electrical Services Limited","I15117","640.80","R&M - Departmental planned (external)","130203114","09/02/2018","Maintenance Programme","Centralised R&M","R2001"
"Wolverhampton City Council","http://opendatacommunities.org/id/metropolitan-district-council/wolverhampton","705542","Midwest Electrical Services Limited","I15115","53.33","R&M - Departmental planned (external)","130203113","09/02/2018","Maintenance Programme","Centralised R&M","R2001"
"Wolverhampton City Council","http://opendatacommunities.org/id/metropolitan-district-council/wolverhampton","705542","Midwest Electrical Services Limited","I12412","59.23","R&M - Departmental planned (external)","130204289","02/02/2018","Markets","Wolverhampton Indoor and Open Market","R2001"
"Wolverhampton City Council","http://opendatacommunities.org/id/metropolitan-district-council/wolverhampton","705542","Midwest Electrical Services Limited","I11227","21.63","R&M - Departmental planned (external)","130204303","02/02/2018","Maintenance Programme","Centralised R&M","R2001"
"Wolverhampton City Council","http://opendatacommunities.org/id/metropolitan-district-council/wolverhampton","705542","Midwest Electrical Services Limited","I12410","68.86","R&M - Departmental planned (external)","130204286","02/02/2018","Facilities Management","Management of Vacant Properties","R2001"
"Wolverhampton City Council","http://opendatacommunities.org/id/metropolitan-district-council/wolverhampton","705542","Midwest Electrical Services Limited","I12416","85.05","R&M - Departmental planned (external)","130204293","02/02/2018","Maintenance Programme","Centralised R&M","R2001"
"Wolverhampton City Council","http://opendatacommunities.org/id/metropolitan-district-council/wolverhampton","705542","Midwest Electrical Services Limited","I11224","30.93","R&M - Departmental planned (external)","130204318","02/02/2018","Maintenance Programme","Centralised R&M","R2001"
"Wolverhampton City Council","http://opendatacommunities.org/id/metropolitan-district-council/wolverhampton","705542","Midwest Electrical Services Limited","I12937","228.43","R&M - Departmental planned (external)","130204280","02/02/2018","Maintenance Programme","Centralised R&M","R2001"
"Wolverhampton City Council","http://opendatacommunities.org/id/metropolitan-district-council/wolverhampton","705542","Midwest Electrical Services Limited","I12414","189.12","R&M - Departmental planned (external)","130204291","02/02/2018","Markets","Bilston Market and Licensed Operations","R2001"
"Wolverhampton City Council","http://opendatacommunities.org/id/metropolitan-district-council/wolverhampton","705542","Midwest Electrical Services Limited","I09704","36.75","R&M - Departmental planned (external)","130204311","02/02/2018","Facilities Management","Parkfields Office Accomodation","R2001"
"Wolverhampton City Council","http://opendatacommunities.org/id/metropolitan-district-council/wolverhampton","705542","Midwest Electrical Services Limited","I12943","21.43","R&M - Departmental planned (external)","130204109","02/02/2018","Facilities Management","Victoria Square, Block 11","R2001"
"Wolverhampton City Council","http://opendatacommunities.org/id/metropolitan-district-council/wolverhampton","705542","Midwest Electrical Services Limited","I12941","153.64","R&M - Departmental planned (external)","130204282","09/02/2018","Maintenance Programme","Centralised R&M","R2001"
"Wolverhampton City Council","http://opendatacommunities.org/id/metropolitan-district-council/wolverhampton","705542","Midwest Electrical Services Limited","I09703","37.37","R&M - Departmental planned (external)","130204329","09/02/2018","Maintenance Programme","Centralised R&M","R2001"
"Wolverhampton City Council","http://opendatacommunities.org/id/metropolitan-district-council/wolverhampton","705542","Midwest Electrical Services Limited","I09656","76.82","R&M - Departmental planned (external)","130204326","07/02/2018","Maintenance Programme","Centralised R&M","R2001"
"Wolverhampton City Council","http://opendatacommunities.org/id/metropolitan-district-council/wolverhampton","705542","Midwest Electrical Services Limited","I15246","25.73","R&M - Departmental planned (external)","130203865","21/02/2018","Schools","Pupil Referral Units - Mid Point","R2001"
"Wolverhampton City Council","http://opendatacommunities.org/id/metropolitan-district-council/wolverhampton","705542","Midwest Electrical Services Limited","I15255","44.33","R&M - Departmental planned (external)","130203870","21/02/2018","Skills","Connexions Contract","R2001"
"Wolverhampton City Council","http://opendatacommunities.org/id/metropolitan-district-council/wolverhampton","705548","Mike Tivey","SFH7/01/18","400.00","Services - Professional Fees","130205847","28/02/2018","Early Intervention","EIP Locality 7 � Low Hill","R4400"
"Wolverhampton City Council","http://opendatacommunities.org/id/metropolitan-district-council/wolverhampton","705548","Mike Tivey","SFH1/1/2018","260.00","Services - Professional Fees","130206682","28/02/2018","Early Intervention","EIP Locality 1 - Eastfields","R4400"
"Wolverhampton City Council","http://opendatacommunities.org/id/metropolitan-district-council/wolverhampton","705548","Mike Tivey","SFH2/01/18","170.00","Services - Professional Fees","130206683","28/02/2018","Early Intervention","EIP Locality 2 � Bilston/Rocket Pool","R4400"
"Wolverhampton City Council","http://opendatacommunities.org/id/metropolitan-district-council/wolverhampton","705609","Mobile Mini UK Limited","7000727956","43.20","Hire of Plant","130205090","28/02/2018","Environmental Maintenance","Ground Maintenance West","R3201"
"Wolverhampton City Council","http://opendatacommunities.org/id/metropolitan-district-council/wolverhampton","705609","Mobile Mini UK Limited","7000727955","43.20","Equipment - Hire","130204937","28/02/2018","Leisure Services","Aldersley Leisure Village","R4001"
"Wolverhampton City Council","http://opendatacommunities.org/id/metropolitan-district-council/wolverhampton","705609","Mobile Mini UK Limited","7000716818","50.00","Hire of Plant","130204420","23/02/2018","Environmental Maintenance","Ground Maintenance West","R3201"
"Wolverhampton City Council","http://opendatacommunities.org/id/metropolitan-district-council/wolverhampton","705634","Morelock Signs Limited","0000203067","64.38","Signage and Labels","130199192","28/02/2018","Parking Services","Car Parks Operational Staff","R4009"
"Wolverhampton City Council","http://opendatacommunities.org/id/metropolitan-district-council/wolverhampton","705634","Morelock Signs Limited","0420481403","-64.38","Signage and Labels","130205643","28/02/2018","Parking Services","Car Parks Operational Staff","R4009"
"Wolverhampton City Council","http://opendatacommunities.org/id/metropolitan-district-council/wolverhampton","705634","Morelock Signs Limited","0000203788","48.50","Materials","130202603","07/02/2018","Street Lighting","Signs Illuminated","R4007"
"Wolverhampton City Council","http://opendatacommunities.org/id/metropolitan-district-council/wolverhampton","705634","Morelock Signs Limited","0000204431","200.00","Materials","130204422","28/02/2018","Highways Maintenance","Signs Non Illuminated","R4007"
"Wolverhampton City Council","http://opendatacommunities.org/id/metropolitan-district-council/wolverhampton","705640","Morris & Alexander Limited","25420","2,067.00","Adaptations","130205091","28/02/2018","Independent Living Service","Independent Living Service","R4411"
"Wolverhampton City Council","http://opendatacommunities.org/id/metropolitan-district-council/wolverhampton","705640","Morris & Alexander Limited","25420","2,336.00","Adaptations","130205091","28/02/2018","Independent Living Service","Independent Living Service","R4411"
"Wolverhampton City Council","http://opendatacommunities.org/id/metropolitan-district-council/wolverhampton","705640","Morris & Alexander Limited","25420","2,040.00","Adaptations","130205091","28/02/2018","Independent Living Service","Independent Living Service","R4411"
"Wolverhampton City Council","http://opendatacommunities.org/id/metropolitan-district-council/wolverhampton","705644","Moseley Park School","APMP1718","1,870.00","Pupil Support","190419903","09/02/2018","Specialist Support","Alternative Provision Pupil Premium","R4971"
"Wolverhampton City Council","http://opendatacommunities.org/id/metropolitan-district-council/wolverhampton","705644","Moseley Park School","SEN Mainstream Top Ups Autumn Term 2017 - Moseley Park Academy","6,483.52","Grant Payments","190418386","07/02/2018","Schools","High Needs Top Up -Mainstream Schools/Academies","R4700"
"Wolverhampton City Council","http://opendatacommunities.org/id/metropolitan-district-council/wolverhampton","705646","Mossvale Maint & Sealing Servs Limited","58101","85.00","TPP - Street Cleansing","130206187","21/02/2018","Highways Maintenance","Brook course, Culvert & Subway Maintenance","R5026"
"Wolverhampton City Council","http://opendatacommunities.org/id/metropolitan-district-council/wolverhampton","705646","Mossvale Maint & Sealing Servs Limited","57988","154.00","TPP - Street Cleansing","130202997","02/02/2018","Highways Maintenance","Brook course, Culvert & Subway Maintenance","R5026"
"Wolverhampton City Council","http://opendatacommunities.org/id/metropolitan-district-council/wolverhampton","705646","Mossvale Maint & Sealing Servs Limited","58102","165.50","TPP - Street Cleansing","130206346","21/02/2018","Highways Maintenance","Brook course, Culvert & Subway Maintenance","R5026"
"Wolverhampton City Council","http://opendatacommunities.org/id/metropolitan-district-council/wolverhampton","705646","Mossvale Maint & Sealing Servs Limited","57989","375.00","TPP - Street Cleansing","130202998","02/02/2018","Highways Maintenance","Brook course, Culvert & Subway Maintenance","R5026"
"Wolverhampton City Council","http://opendatacommunities.org/id/metropolitan-district-council/wolverhampton","705653","Mott Macdonald Limited","IN00383324","3,060.00","Construction and Conversion","130204756","28/02/2018","-","GF - Accessing Growth Fund","C1100"
"Wolverhampton City Council","http://opendatacommunities.org/id/metropolitan-district-council/wolverhampton","705691","Multifloor (Walsall) Limited","55206","1,035.00","Equipment - Purchase","130204757","28/02/2018","Older People Provider Services","Older People Provider Management","R4000"
"Wolverhampton City Council","http://opendatacommunities.org/id/metropolitan-district-council/wolverhampton","705720","Mvis Limited:Municipal Vehicle Insp.Svs.","INV-3704","105.00","Services - Professional Fees","190417799","02/02/2018","Fleet Services","Fleet Management","R4400"
"Wolverhampton City Council","http://opendatacommunities.org/id/metropolitan-district-council/wolverhampton","705720","Mvis Limited:Municipal Vehicle Insp.Svs.","INV-3704","60.00","Services - Professional Fees","190417799","02/02/2018","Fleet Services","Fleet Management","R4400"
"Wolverhampton City Council","http://opendatacommunities.org/id/metropolitan-district-council/wolverhampton","705748","Nacro","SIO/008457","6,248.92","TPP - Other","130203343","16/02/2018","Early Intervention","Vulnerable Women","R5010"
"Wolverhampton City Council","http://opendatacommunities.org/id/metropolitan-district-council/wolverhampton","705748","Nacro","SIO/008428","365,002.75","TPP - Public Health Contracts","130201915","07/02/2018","Contracts","Alcohol and Drug","R5060"
"Wolverhampton City Council","http://opendatacommunities.org/id/metropolitan-district-council/wolverhampton","705750","Nagels (UK) Limited","231634","285.00","Stationery","130204029","02/02/2018","Parking Services","Car Parks Operational Staff","R4308"
"Wolverhampton City Council","http://opendatacommunities.org/id/metropolitan-district-council/wolverhampton","705750","Nagels (UK) Limited","231634","26.00","Stationery","130204029","02/02/2018","Parking Services","Car Parks Operational Staff","R4308"
"Wolverhampton City Council","http://opendatacommunities.org/id/metropolitan-district-council/wolverhampton","705751","Nalco Limited","9400470564","412.50","R&M - Departmental planned (external)","130201918","07/02/2018","Maintenance Programme","Civic Centre Repairs & Maintenance","R2001"
"Wolverhampton City Council","http://opendatacommunities.org/id/metropolitan-district-council/wolverhampton","705829","Neopost Limited (Credifon)",""FRANKING CREDITS ""65"""","5,000.00","Inventories","190428354","28/02/2018","-","General Fund Balance Sheet","B3000"
"Wolverhampton City Council","http://opendatacommunities.org/id/metropolitan-district-council/wolverhampton","705829","Neopost Limited (Credifon)",""FRANKING CREDITS ""64"""","5,000.00","Inventories","190422139","14/02/2018","-","General Fund Balance Sheet","B3000"
"Wolverhampton City Council","http://opendatacommunities.org/id/metropolitan-district-council/wolverhampton","705838","Network Rail Infrastr.Limited (Property)","1220941","18,490.69","TPP - Maintenance on Other Roads","130205645","21/02/2018","Transportation","Bridges & Subways","R5710"
"Wolverhampton City Council","http://opendatacommunities.org/id/metropolitan-district-council/wolverhampton","705838","Network Rail Infrastr.Limited (Property)","1222153","11,956.63","External Professional Fees","130206060","14/02/2018","-","GF - Interchange - Ph2 Train Station/MSCP/Metro Extension","C6002"
"Wolverhampton City Council","http://opendatacommunities.org/id/metropolitan-district-council/wolverhampton","705838","Network Rail Infrastr.Limited (Property)","1222151","1,214.90","External Professional Fees","130206059","14/02/2018","-","GF - Interchange - Ph2 Train Station/MSCP/Metro Extension","C6002"
"Wolverhampton City Council","http://opendatacommunities.org/id/metropolitan-district-council/wolverhampton","705854","Newauto Limited T/A Mogo (UK)","T27874","8,708.00","Signage and Labels","130202747","07/02/2018","Licensing","Licensing - Private Hire Vehicles","R4009"
"Wolverhampton City Council","http://opendatacommunities.org/id/metropolitan-district-council/wolverhampton","705889","Nick Robinson Photography","WCS_150118_001","750.00","Services - Professional Fees","130206188","16/02/2018","Headstart","Headstart - Learning Technologies Team","R4400"
"Wolverhampton City Council","http://opendatacommunities.org/id/metropolitan-district-council/wolverhampton","705904","Nisbets PLC","16123985","53.97","Cleaning Supplies and Materials","130203348","14/02/2018","Learning Disability Provider","Duke Street Bungalows","R2705"
"Wolverhampton City Council","http://opendatacommunities.org/id/metropolitan-district-council/wolverhampton","705904","Nisbets PLC","16123985","2.97","Cleaning Supplies and Materials","130203348","14/02/2018","Learning Disability Provider","Duke Street Bungalows","R2705"
"Wolverhampton City Council","http://opendatacommunities.org/id/metropolitan-district-council/wolverhampton","705904","Nisbets PLC","16123985","-53.97","Cleaning Supplies and Materials","130203348","14/02/2018","Learning Disability Provider","Duke Street Bungalows","R2705"
"Wolverhampton City Council","http://opendatacommunities.org/id/metropolitan-district-council/wolverhampton","705904","Nisbets PLC","16123985","-2.97","Cleaning Supplies and Materials","130203348","14/02/2018","Learning Disability Provider","Duke Street Bungalows","R2705"
"Wolverhampton City Council","http://opendatacommunities.org/id/metropolitan-district-council/wolverhampton","705904","Nisbets PLC","16123985","51.24","Cleaning Supplies and Materials","130203348","14/02/2018","Learning Disability Provider","Duke Street Bungalows","R2705"
"Wolverhampton City Council","http://opendatacommunities.org/id/metropolitan-district-council/wolverhampton","705904","Nisbets PLC","16170494","209.97","Furniture","130204594","21/02/2018","Corporate Asset Management","Future Space Decant Area","R4004"
"Wolverhampton City Council","http://opendatacommunities.org/id/metropolitan-district-council/wolverhampton","705904","Nisbets PLC","16116576","374.99","Equipment - Purchase","130203190","14/02/2018","Catering","Education Catering - General Overheads","R4000"
"Wolverhampton City Council","http://opendatacommunities.org/id/metropolitan-district-council/wolverhampton","705904","Nisbets PLC","16108985","22.20","Equipment - Purchase","130202604","16/02/2018","Older People Provider Services","Bradley Lodge Resource Centre","R4000"
"Wolverhampton City Council","http://opendatacommunities.org/id/metropolitan-district-council/wolverhampton","705904","Nisbets PLC","16170495","71.98","Cleaning Supplies and Materials","130204595","21/02/2018","Learning Disability Provider","Duke Street Bungalows","R2705"
"Wolverhampton City Council","http://opendatacommunities.org/id/metropolitan-district-council/wolverhampton","705907","NJB Physiotherapy Limited","58532","85.00","Services - Professional Fees","130204041","07/02/2018","Human Resources","HR Advice","R4400"
"Wolverhampton City Council","http://opendatacommunities.org/id/metropolitan-district-council/wolverhampton","705907","NJB Physiotherapy Limited","58505","105.00","Services - Professional Fees","130204039","07/02/2018","Human Resources","HR Advice","R4400"
"Wolverhampton City Council","http://opendatacommunities.org/id/metropolitan-district-council/wolverhampton","705907","NJB Physiotherapy Limited","58404","85.00","Services - Professional Fees","130204032","07/02/2018","Human Resources","HR Advice","R4400"
"Wolverhampton City Council","http://opendatacommunities.org/id/metropolitan-district-council/wolverhampton","705907","NJB Physiotherapy Limited","58773","85.00","Services - Professional Fees","130205653","28/02/2018","Human Resources","HR Advice","R4400"
"Wolverhampton City Council","http://opendatacommunities.org/id/metropolitan-district-council/wolverhampton","705907","NJB Physiotherapy Limited","58620","85.00","Services - Professional Fees","130205649","28/02/2018","Human Resources","HR Advice","R4400"
"Wolverhampton City Council","http://opendatacommunities.org/id/metropolitan-district-council/wolverhampton","705907","NJB Physiotherapy Limited","58861","147.00","Services - Professional Fees","130206812","28/02/2018","Human Resources","HR Advice","R4400"
"Wolverhampton City Council","http://opendatacommunities.org/id/metropolitan-district-council/wolverhampton","705907","NJB Physiotherapy Limited","58624","85.00","Services - Professional Fees","130205652","28/02/2018","Human Resources","HR Advice","R4400"
"Wolverhampton City Council","http://opendatacommunities.org/id/metropolitan-district-council/wolverhampton","705907","NJB Physiotherapy Limited","58619","231.00","Services - Professional Fees","130205648","28/02/2018","Human Resources","HR Advice","R4400"
"Wolverhampton City Council","http://opendatacommunities.org/id/metropolitan-district-council/wolverhampton","705907","NJB Physiotherapy Limited","58551","15.00","Services - Professional Fees","130204044","07/02/2018","Human Resources","HR Advice","R4400"
"Wolverhampton City Council","http://opendatacommunities.org/id/metropolitan-district-council/wolverhampton","705907","NJB Physiotherapy Limited","58470","50.00","Services - Professional Fees","130204037","07/02/2018","Human Resources","HR Advice","R4400"
"Wolverhampton City Council","http://opendatacommunities.org/id/metropolitan-district-council/wolverhampton","705907","NJB Physiotherapy Limited","58469","85.00","Services - Professional Fees","130204036","07/02/2018","Human Resources","HR Advice","R4400"
"Wolverhampton City Council","http://opendatacommunities.org/id/metropolitan-district-council/wolverhampton","705907","NJB Physiotherapy Limited","58403","85.00","Services - Professional Fees","130204031","07/02/2018","Human Resources","HR Advice","R4400"
"Wolverhampton City Council","http://opendatacommunities.org/id/metropolitan-district-council/wolverhampton","705907","NJB Physiotherapy Limited","58621","85.00","Services - Professional Fees","130205650","28/02/2018","Human Resources","HR Advice","R4400"
"Wolverhampton City Council","http://opendatacommunities.org/id/metropolitan-district-council/wolverhampton","705907","NJB Physiotherapy Limited","58819","11.00","Services - Professional Fees","130206686","28/02/2018","Human Resources","HR Advice","R4400"
"Wolverhampton City Council","http://opendatacommunities.org/id/metropolitan-district-council/wolverhampton","705907","NJB Physiotherapy Limited","58774","85.00","Services - Professional Fees","130205654","28/02/2018","Human Resources","HR Advice","R4400"
"Wolverhampton City Council","http://opendatacommunities.org/id/metropolitan-district-council/wolverhampton","705907","NJB Physiotherapy Limited","58156","85.00","Services - Professional Fees","130204030","02/02/2018","Human Resources","HR Advice","R4400"
"Wolverhampton City Council","http://opendatacommunities.org/id/metropolitan-district-council/wolverhampton","705907","NJB Physiotherapy Limited","58533","85.00","Services - Professional Fees","130204042","07/02/2018","Human Resources","HR Advice","R4400"
"Wolverhampton City Council","http://opendatacommunities.org/id/metropolitan-district-council/wolverhampton","705907","NJB Physiotherapy Limited","58439","147.00","Services - Professional Fees","130204034","07/02/2018","Human Resources","HR Advice","R4400"
"Wolverhampton City Council","http://opendatacommunities.org/id/metropolitan-district-council/wolverhampton","705907","NJB Physiotherapy Limited","58405","85.00","Services - Professional Fees","130204033","07/02/2018","Human Resources","HR Advice","R4400"
"Wolverhampton City Council","http://opendatacommunities.org/id/metropolitan-district-council/wolverhampton","705907","NJB Physiotherapy Limited","58623","85.00","Services - Professional Fees","130205651","28/02/2018","Human Resources","HR Advice","R4400"
"Wolverhampton City Council","http://opendatacommunities.org/id/metropolitan-district-council/wolverhampton","705907","NJB Physiotherapy Limited","58550","168.00","Services - Professional Fees","130205647","28/02/2018","Human Resources","HR Advice","R4400"
"Wolverhampton City Council","http://opendatacommunities.org/id/metropolitan-district-council/wolverhampton","705907","NJB Physiotherapy Limited","58886","11.00","Services - Professional Fees","130206690","28/02/2018","Human Resources","HR Advice","R4400"
"Wolverhampton City Council","http://opendatacommunities.org/id/metropolitan-district-council/wolverhampton","705907","NJB Physiotherapy Limited","58549","168.00","Services - Professional Fees","130205646","21/02/2018","Human Resources","HR Advice","R4400"
"Wolverhampton City Council","http://opendatacommunities.org/id/metropolitan-district-council/wolverhampton","705907","NJB Physiotherapy Limited","58483","189.00","Services - Professional Fees","130204038","07/02/2018","Human Resources","HR Advice","R4400"
"Wolverhampton City Council","http://opendatacommunities.org/id/metropolitan-district-council/wolverhampton","705907","NJB Physiotherapy Limited","58468","85.00","Services - Professional Fees","130204035","07/02/2018","Human Resources","HR Advice","R4400"
"Wolverhampton City Council","http://opendatacommunities.org/id/metropolitan-district-council/wolverhampton","705907","NJB Physiotherapy Limited","58534","85.00","Services - Professional Fees","130204043","07/02/2018","Human Resources","HR Advice","R4400"
"Wolverhampton City Council","http://opendatacommunities.org/id/metropolitan-district-council/wolverhampton","705907","NJB Physiotherapy Limited","58506","168.00","Services - Professional Fees","130204040","07/02/2018","Human Resources","HR Advice","R4400"
"Wolverhampton City Council","http://opendatacommunities.org/id/metropolitan-district-council/wolverhampton","705913","No 5 Chambers Limited","8274","1,583.33","Services - Professional Fees","130205655","21/02/2018","Public Protection","EHTS Operational Costs","R4400"
"Wolverhampton City Council","http://opendatacommunities.org/id/metropolitan-district-council/wolverhampton","705913","No 5 Chambers Limited","A20170032","-500.00","Services - Professional Fees","130200686","21/02/2018","Licensing","Licensing - Private Hire Vehicles","R4400"
"Wolverhampton City Council","http://opendatacommunities.org/id/metropolitan-district-council/wolverhampton","705915","Noah�s Ark Environmental Services Ltd","WV1801","1,155.00","Services - Professional Fees","130204938","09/02/2018","Public Protection","Pest Control & Animal Welfare","R4400"
"Wolverhampton City Council","http://opendatacommunities.org/id/metropolitan-district-council/wolverhampton","705916","Nobisco Limited","520050","85.92","Cleaning Supplies and Materials","130204765","09/02/2018","Markets","Wolverhampton Indoor and Open Market","R2705"
"Wolverhampton City Council","http://opendatacommunities.org/id/metropolitan-district-council/wolverhampton","705916","Nobisco Limited","521929","28.23","Cleaning Supplies and Materials","130206190","21/02/2018","Leisure Services","Bert Williams Leisure Centre Caf�","R2705"
"Wolverhampton City Council","http://opendatacommunities.org/id/metropolitan-district-council/wolverhampton","705916","Nobisco Limited","521218","192.90","Cleaning Supplies and Materials","130205859","21/02/2018","Older People Provider Services","Bradley Lodge Resource Centre","R2705"
"Wolverhampton City Council","http://opendatacommunities.org/id/metropolitan-district-council/wolverhampton","705916","Nobisco Limited","520045","283.55","Cleaning Supplies and Materials","130204761","07/02/2018","Cleaning","Cleaning of Buildings - General","R2705"
"Wolverhampton City Council","http://opendatacommunities.org/id/metropolitan-district-council/wolverhampton","705916","Nobisco Limited","520047","3,231.81","Cleaning Supplies and Materials","130204763","07/02/2018","Cleaning","Cleaning of Buildings - General","R2705"
"Wolverhampton City Council","http://opendatacommunities.org/id/metropolitan-district-council/wolverhampton","705916","Nobisco Limited","523121","615.34","Cleaning Supplies and Materials","130207104","28/02/2018","Markets","Bilston Market and Licensed Operations","R2705"
"Wolverhampton City Council","http://opendatacommunities.org/id/metropolitan-district-council/wolverhampton","705916","Nobisco Limited","523126","309.03","Cleaning Supplies and Materials","130207109","28/02/2018","Older People Provider Services","Bradley Lodge Resource Centre","R2705"
"Wolverhampton City Council","http://opendatacommunities.org/id/metropolitan-district-council/wolverhampton","705916","Nobisco Limited","522830","225.12","Cleaning Supplies and Materials","130206818","28/02/2018","Older People Provider Services","Reablement Team","R2705"
"Wolverhampton City Council","http://opendatacommunities.org/id/metropolitan-district-council/wolverhampton","705916","Nobisco Limited","523267","137.04","Cleaning Supplies and Materials","130207254","28/02/2018","Markets","Wolverhampton Indoor and Open Market","R2705"
"Wolverhampton City Council","http://opendatacommunities.org/id/metropolitan-district-council/wolverhampton","705916","Nobisco Limited","520758","29.64","Cleaning Supplies and Materials","130205317","23/02/2018","Older People Provider Services","Bradley Lodge Resource Centre","R2705"
"Wolverhampton City Council","http://opendatacommunities.org/id/metropolitan-district-council/wolverhampton","705916","Nobisco Limited","522952","55.40","Cleaning Supplies and Materials","130206949","28/02/2018","Standards and Vulnerable Pupils","SEN Early Years Team","R2705"
"Wolverhampton City Council","http://opendatacommunities.org/id/metropolitan-district-council/wolverhampton","705916","Nobisco Limited","521211","139.40","Cleaning Supplies and Materials","130205852","16/02/2018","Cleaning","Cleaning of Buildings - General","R2705"
"Wolverhampton City Council","http://opendatacommunities.org/id/metropolitan-district-council/wolverhampton","705916","Nobisco Limited","521215","269.42","Cleaning Supplies and Materials","130205856","14/02/2018","Learning Disability Provider","Duke Street Bungalows","R2705"
"Wolverhampton City Council","http://opendatacommunities.org/id/metropolitan-district-council/wolverhampton","705916","Nobisco Limited","521210","128.00","Cleaning Supplies and Materials","130205851","14/02/2018","Catering","Education Catering - General Overheads","R2705"
"Wolverhampton City Council","http://opendatacommunities.org/id/metropolitan-district-council/wolverhampton","705916","Nobisco Limited","520550","103.41","Cleaning Supplies and Materials","130205096","14/02/2018","Specialist Support","Upper Pendeford Farm Short Breaks Centre","R2705"
"Wolverhampton City Council","http://opendatacommunities.org/id/metropolitan-district-council/wolverhampton","705916","Nobisco Limited","521216","37.10","Cleaning Supplies and Materials","130205857","14/02/2018","Learning Disability Provider","Duke Street Bungalows","R2705"
"Wolverhampton City Council","http://opendatacommunities.org/id/metropolitan-district-council/wolverhampton","705916","Nobisco Limited","520548","71.20","Cleaning Supplies and Materials","130205094","14/02/2018","Older People Provider Services","Bradley Lodge Resource Centre","R2705"
"Wolverhampton City Council","http://opendatacommunities.org/id/metropolitan-district-council/wolverhampton","705916","Nobisco Limited","522109","1,613.42","Cleaning Supplies and Materials","130206349","21/02/2018","Cleaning","Cleaning of Buildings - General","R2705"
"Wolverhampton City Council","http://opendatacommunities.org/id/metropolitan-district-council/wolverhampton","705916","Nobisco Limited","517562","161.88","Cleaning Supplies and Materials","130202999","09/02/2018","Catering","Education Catering - General Overheads","R2705"
"Wolverhampton City Council","http://opendatacommunities.org/id/metropolitan-district-council/wolverhampton","705916","Nobisco Limited","521936","7,428.48","Cleaning Supplies and Materials","130206192","21/02/2018","Environmental Maintenance","Ground Maintenance East","R2705"
"Wolverhampton City Council","http://opendatacommunities.org/id/metropolitan-district-council/wolverhampton","705916","Nobisco Limited","518583","18.42","Cleaning Supplies and Materials","130203715","02/02/2018","Leisure Services","Bert Williams Leisure Centre Caf�","R2705"
"Wolverhampton City Council","http://opendatacommunities.org/id/metropolitan-district-council/wolverhampton","705916","Nobisco Limited","519330","37.80","Cleaning Supplies and Materials","130204198","07/02/2018","Cleaning","Cleaning of Buildings - General","R2705"
"Wolverhampton City Council","http://opendatacommunities.org/id/metropolitan-district-council/wolverhampton","705916","Nobisco Limited","519331","108.52","Cleaning Supplies and Materials","130204199","07/02/2018","Cleaning","Cleaning of Buildings - General","R2705"
"Wolverhampton City Council","http://opendatacommunities.org/id/metropolitan-district-council/wolverhampton","705916","Nobisco Limited","522111","14.98","Cleaning Supplies and Materials","130206351","28/02/2018","Learning Disability Provider","Duke Street Bungalows","R2705"
"Wolverhampton City Council","http://opendatacommunities.org/id/metropolitan-district-council/wolverhampton","705916","Nobisco Limited","523119","337.00","Cleaning Supplies and Materials","130207102","28/02/2018","Cleaning","Cleaning of Buildings - General","R2705"
"Wolverhampton City Council","http://opendatacommunities.org/id/metropolitan-district-council/wolverhampton","705916","Nobisco Limited","522951","31.46","Cleaning Supplies and Materials","130206948","28/02/2018","Leisure Services","Bert Williams Leisure Centre Caf�","R2705"
"Wolverhampton City Council","http://opendatacommunities.org/id/metropolitan-district-council/wolverhampton","705916","Nobisco Limited","523268","41.83","Cleaning Supplies and Materials","130207255","28/02/2018","Visitor Economy","Art Gallery Tea Room","R2705"
"Wolverhampton City Council","http://opendatacommunities.org/id/metropolitan-district-council/wolverhampton","705916","Nobisco Limited","522317","20.32","Cleaning Supplies and Materials","130206499","28/02/2018","Visitor Economy","Bantock - Tea Rooms","R2705"
"Wolverhampton City Council","http://opendatacommunities.org/id/metropolitan-district-council/wolverhampton","705916","Nobisco Limited","521536","29.16","Cleaning Supplies and Materials","130205863","16/02/2018","Early Intervention","EIP Locality 2 � Bilston/Rocket Pool","R2705"
"Wolverhampton City Council","http://opendatacommunities.org/id/metropolitan-district-council/wolverhampton","705916","Nobisco Limited","521535","95.58","Cleaning Supplies and Materials","130205862","16/02/2018","Learning Disability Provider","Ernest Bold Court","R2705"
"Wolverhampton City Council","http://opendatacommunities.org/id/metropolitan-district-council/wolverhampton","705916","Nobisco Limited","520759","10.98","Cleaning Supplies and Materials","130205318","23/02/2018","Older People Provider Services","Bradley Lodge Resource Centre","R2705"
"Wolverhampton City Council","http://opendatacommunities.org/id/metropolitan-district-council/wolverhampton","705916","Nobisco Limited","521214","5.28","Cleaning Supplies and Materials","130205855","14/02/2018","Leisure Services","Central Baths","R2705"
"Wolverhampton City Council","http://opendatacommunities.org/id/metropolitan-district-council/wolverhampton","705916","Nobisco Limited","520757","153.92","Cleaning Supplies and Materials","130205316","14/02/2018","Learning Disability Provider","Duke Street Bungalows","R2705"
"Wolverhampton City Council","http://opendatacommunities.org/id/metropolitan-district-council/wolverhampton","705916","Nobisco Limited","521219","78.57","Cleaning Supplies and Materials","130205860","14/02/2018","Visitor Economy","Art Gallery Tea Room","R2705"
"Wolverhampton City Council","http://opendatacommunities.org/id/metropolitan-district-council/wolverhampton","705916","Nobisco Limited","521209","282.54","Cleaning Supplies and Materials","130205850","14/02/2018","Catering","Education Catering - General Overheads","R2705"
"Wolverhampton City Council","http://opendatacommunities.org/id/metropolitan-district-council/wolverhampton","705916","Nobisco Limited","8475","-12.72","Cleaning Supplies and Materials","130206194","21/02/2018","Leisure Services","Central Baths","R2705"
"Wolverhampton City Council","http://opendatacommunities.org/id/metropolitan-district-council/wolverhampton","705916","Nobisco Limited","521739","31.64","Cleaning Supplies and Materials","130206064","21/02/2018","Specialist Support","Upper Pendeford Farm Short Breaks Centre","R2705"
"Wolverhampton City Council","http://opendatacommunities.org/id/metropolitan-district-council/wolverhampton","705916","Nobisco Limited","522110","32.01","Cleaning Supplies and Materials","130206350","21/02/2018","Cleaning","Cleaning of Buildings - General","R2705"
"Wolverhampton City Council","http://opendatacommunities.org/id/metropolitan-district-council/wolverhampton","705916","Nobisco Limited","520049","632.56","Cleaning Supplies and Materials","130204764","09/02/2018","Cleaning","Cleaning of Buildings - General","R2705"
"Wolverhampton City Council","http://opendatacommunities.org/id/metropolitan-district-council/wolverhampton","705916","Nobisco Limited","520046","211.15","Cleaning Supplies and Materials","130204762","07/02/2018","Catering","Education Catering - General Overheads","R2705"
"Wolverhampton City Council","http://opendatacommunities.org/id/metropolitan-district-council/wolverhampton","705916","Nobisco Limited","520044","33.12","Cleaning Supplies and Materials","130204760","07/02/2018","Catering","Education Catering - General Overheads","R2705"
"Wolverhampton City Council","http://opendatacommunities.org/id/metropolitan-district-council/wolverhampton","705916","Nobisco Limited","522829","7.14","Cleaning Supplies and Materials","130206817","28/02/2018","Catering","Education Catering - General Overheads","R2705"
"Wolverhampton City Council","http://opendatacommunities.org/id/metropolitan-district-council/wolverhampton","705916","Nobisco Limited","523120","1,878.05","Cleaning Supplies and Materials","130207103","28/02/2018","Cleaning","Cleaning of Buildings - General","R2705"
"Wolverhampton City Council","http://opendatacommunities.org/id/metropolitan-district-council/wolverhampton","705916","Nobisco Limited","523128","48.08","Cleaning Supplies and Materials","130207111","28/02/2018","Early Intervention","EIP Locality 4 - Bingley","R2705"
"Wolverhampton City Council","http://opendatacommunities.org/id/metropolitan-district-council/wolverhampton","705916","Nobisco Limited","522316","311.07","Cleaning Supplies and Materials","130206498","28/02/2018","Leisure Services","Central Baths","R2705"
"Wolverhampton City Council","http://opendatacommunities.org/id/metropolitan-district-council/wolverhampton","705916","Nobisco Limited","523124","85.61","Cleaning Supplies and Materials","130207107","28/02/2018","Visitor Economy","Bantock - Tea Rooms","R2705"
"Wolverhampton City Council","http://opendatacommunities.org/id/metropolitan-district-council/wolverhampton","705916","Nobisco Limited","520992","141.53","Cleaning Supplies and Materials","130205511","16/02/2018","Leisure Services","Bert Williams Leisure Centre Caf�","R2705"
"Wolverhampton City Council","http://opendatacommunities.org/id/metropolitan-district-council/wolverhampton","705916","Nobisco Limited","520547","79.29","Cleaning Supplies and Materials","130205093","14/02/2018","Visitor Economy","Bantock - Tea Rooms","R2705"
"Wolverhampton City Council","http://opendatacommunities.org/id/metropolitan-district-council/wolverhampton","705916","Nobisco Limited","520993","37.11","Cleaning Supplies and Materials","130205322","14/02/2018","Visitor Economy","Art Gallery Tea Room","R2705"
"Wolverhampton City Council","http://opendatacommunities.org/id/metropolitan-district-council/wolverhampton","705916","Nobisco Limited","520760","18.80","Cleaning Supplies and Materials","130205319","14/02/2018","Older People Provider Services","Blakenhall Resource Centre","R2705"
"Wolverhampton City Council","http://opendatacommunities.org/id/metropolitan-district-council/wolverhampton","705916","Nobisco Limited","520549","464.82","Cleaning Supplies and Materials","130205095","14/02/2018","Older People Provider Services","Bradley Lodge Resource Centre","R2705"
"Wolverhampton City Council","http://opendatacommunities.org/id/metropolitan-district-council/wolverhampton","705916","Nobisco Limited","521937","831.04","Cleaning Supplies and Materials","130206193","21/02/2018","Environmental Maintenance","Ground Maintenance East","R2705"
"Wolverhampton City Council","http://opendatacommunities.org/id/metropolitan-district-council/wolverhampton","705916","Nobisco Limited","521928","50.86","Cleaning Supplies and Materials","130206189","21/02/2018","Leisure Services","Bert Williams Leisure Centre Caf�","R2705"
"Wolverhampton City Council","http://opendatacommunities.org/id/metropolitan-district-council/wolverhampton","705916","Nobisco Limited","519502","54.36","Cleaning Supplies and Materials","130204423","09/02/2018","Learning Disability Provider","Ernest Bold Court","R2705"
"Wolverhampton City Council","http://opendatacommunities.org/id/metropolitan-district-council/wolverhampton","705916","Nobisco Limited","519332","1,530.97","Cleaning Supplies and Materials","130204200","07/02/2018","Catering","Education Catering - General Overheads","R2705"
"Wolverhampton City Council","http://opendatacommunities.org/id/metropolitan-district-council/wolverhampton","705916","Nobisco Limited","518172","311.22","Cleaning Supplies and Materials","130203353","07/02/2018","Leisure Services","Bert Williams Leisure Centre","R2705"
"Wolverhampton City Council","http://opendatacommunities.org/id/metropolitan-district-council/wolverhampton","705916","Nobisco Limited","518172","-311.22","Cleaning Supplies and Materials","130203353","07/02/2018","Leisure Services","Bert Williams Leisure Centre","R2705"
"Wolverhampton City Council","http://opendatacommunities.org/id/metropolitan-district-council/wolverhampton","705916","Nobisco Limited","518172","312.08","Cleaning Supplies and Materials","130203353","07/02/2018","Leisure Services","Bert Williams Leisure Centre","R2705"
"Wolverhampton City Council","http://opendatacommunities.org/id/metropolitan-district-council/wolverhampton","705916","Nobisco Limited","523122","1,830.80","Cleaning Supplies and Materials","130207105","28/02/2018","Environmental Maintenance","Ground Maintenance East","R2705"
"Wolverhampton City Council","http://opendatacommunities.org/id/metropolitan-district-council/wolverhampton","705916","Nobisco Limited","522539","125.92","Cleaning Supplies and Materials","130206691","28/02/2018","Independent Living Service","Independent Living Service","R2705"
"Wolverhampton City Council","http://opendatacommunities.org/id/metropolitan-district-council/wolverhampton","705916","Nobisco Limited","523125","37.13","Cleaning Supplies and Materials","130207108","28/02/2018","Visitor Economy","Bantock - Tea Rooms","R2705"
"Wolverhampton City Council","http://opendatacommunities.org/id/metropolitan-district-council/wolverhampton","705916","Nobisco Limited","523264","233.41","Cleaning Supplies and Materials","130207251","28/02/2018","Catering","Education Catering - General Overheads","R2705"
"Wolverhampton City Council","http://opendatacommunities.org/id/metropolitan-district-council/wolverhampton","705916","Nobisco Limited","523265","160.83","Cleaning Supplies and Materials","130207252","28/02/2018","Fleet Services","Passenger Transport - General","R2705"
"Wolverhampton City Council","http://opendatacommunities.org/id/metropolitan-district-council/wolverhampton","705916","Nobisco Limited","521212","1,346.06","Cleaning Supplies and Materials","130205853","16/02/2018","Cleaning","Cleaning of Buildings - General","R2705"
"Wolverhampton City Council","http://opendatacommunities.org/id/metropolitan-district-council/wolverhampton","705916","Nobisco Limited","520770","103.64","Cleaning Supplies and Materials","130205320","16/02/2018","Leisure Services","Bert Williams Leisure Centre Caf�","R2705"
"Wolverhampton City Council","http://opendatacommunities.org/id/metropolitan-district-council/wolverhampton","705916","Nobisco Limited","522315","150.24","Cleaning Supplies and Materials","130206497","23/02/2018","Catering","Education Catering - General Overheads","R2705"
"Wolverhampton City Council","http://opendatacommunities.org/id/metropolitan-district-council/wolverhampton","705916","Nobisco Limited","521217","19.77","Cleaning Supplies and Materials","130205858","14/02/2018","Visitor Economy","Bantock - Tea Rooms","R2705"
"Wolverhampton City Council","http://opendatacommunities.org/id/metropolitan-district-council/wolverhampton","705916","Nobisco Limited","520546","265.48","Cleaning Supplies and Materials","130205092","14/02/2018","Learning Disability Provider","Duke Street Bungalows","R2705"
"Wolverhampton City Council","http://opendatacommunities.org/id/metropolitan-district-council/wolverhampton","705916","Nobisco Limited","518820","226.68","Cleaning Supplies and Materials","130203874","14/02/2018","Leisure Services","Central Baths","R2705"
"Wolverhampton City Council","http://opendatacommunities.org/id/metropolitan-district-council/wolverhampton","705916","Nobisco Limited","519706","6.85","Cleaning Supplies and Materials","130204424","14/02/2018","Learning Disability Provider","Ernest Bold Court","R2705"
"Wolverhampton City Council","http://opendatacommunities.org/id/metropolitan-district-council/wolverhampton","705926","Normans (Burton-On-Trent) Limited","INV1170645","360.00","Equipment - Purchase","130203882","21/02/2018","Standards and Vulnerable Pupils","Music Support Team","R4000"
"Wolverhampton City Council","http://opendatacommunities.org/id/metropolitan-district-council/wolverhampton","705926","Normans (Burton-On-Trent) Limited","INV1165191","501.00","Equipment - R & M","130202288","07/02/2018","Standards and Vulnerable Pupils","Music Support Team","R4003"
"Wolverhampton City Council","http://opendatacommunities.org/id/metropolitan-district-council/wolverhampton","705926","Normans (Burton-On-Trent) Limited","INV1164018","233.00","Equipment - R & M","130201579","02/02/2018","Standards and Vulnerable Pupils","Music Support Team","R4003"
"Wolverhampton City Council","http://opendatacommunities.org/id/metropolitan-district-council/wolverhampton","705926","Normans (Burton-On-Trent) Limited","INV1164889","13.32","Equipment - Purchase","130202117","07/02/2018","Standards and Vulnerable Pupils","Music Support Team","R4000"
"Wolverhampton City Council","http://opendatacommunities.org/id/metropolitan-district-council/wolverhampton","705926","Normans (Burton-On-Trent) Limited","INV1165837","12.00","Equipment - Purchase","130202466","09/02/2018","Standards and Vulnerable Pupils","Music Support Team","R4000"
"Wolverhampton City Council","http://opendatacommunities.org/id/metropolitan-district-council/wolverhampton","705938","North Yorkshire Mobility & Safety","213735","2,213.70","Adaptations","130204201","21/02/2018","Independent Living Service","Independent Living Service","R4411"
"Wolverhampton City Council","http://opendatacommunities.org/id/metropolitan-district-council/wolverhampton","705945","Northgate Public Services (UK) Limited","91401556","1,640.05","Services - Professional Fees","130204939","28/02/2018","Customer Services","City Direct","R4400"
"Wolverhampton City Council","http://opendatacommunities.org/id/metropolitan-district-council/wolverhampton","705946","Northgate Vehicle Hire Limited","SL04843630IN","306.46","Hire of Vehicles","190426082","23/02/2018","Fleet Services","Fleet Management","R3200"
"Wolverhampton City Council","http://opendatacommunities.org/id/metropolitan-district-council/wolverhampton","705946","Northgate Vehicle Hire Limited","SL04843647IN","224.40","Hire of Vehicles","190426093","23/02/2018","Fleet Services","Fleet Management","R3200"
"Wolverhampton City Council","http://opendatacommunities.org/id/metropolitan-district-council/wolverhampton","705946","Northgate Vehicle Hire Limited","SL04843673IN","190.52","Hire of Vehicles","190426112","23/02/2018","Fleet Services","Fleet Management","R3200"
"Wolverhampton City Council","http://opendatacommunities.org/id/metropolitan-district-council/wolverhampton","705946","Northgate Vehicle Hire Limited","SL04843664IN","190.52","Hire of Vehicles","190426105","23/02/2018","Fleet Services","Fleet Management","R3200"
"Wolverhampton City Council","http://opendatacommunities.org/id/metropolitan-district-council/wolverhampton","705946","Northgate Vehicle Hire Limited","SL04843619IN","306.46","Hire of Vehicles","190426075","23/02/2018","Fleet Services","Fleet Management","R3200"
"Wolverhampton City Council","http://opendatacommunities.org/id/metropolitan-district-council/wolverhampton","705946","Northgate Vehicle Hire Limited","SL04843619IN","306.46","Hire of Vehicles","190426075","23/02/2018","Fleet Services","Fleet Management","R3200"
"Wolverhampton City Council","http://opendatacommunities.org/id/metropolitan-district-council/wolverhampton","705946","Northgate Vehicle Hire Limited","SL04843618IN","306.46","Hire of Vehicles","190426074","23/02/2018","Fleet Services","Fleet Management","R3200"
"Wolverhampton City Council","http://opendatacommunities.org/id/metropolitan-district-council/wolverhampton","705946","Northgate Vehicle Hire Limited","SL04843609IN","306.46","Hire of Vehicles","190426069","23/02/2018","Fleet Services","Fleet Management","R3200"
"Wolverhampton City Council","http://opendatacommunities.org/id/metropolitan-district-council/wolverhampton","705946","Northgate Vehicle Hire Limited","SL04843650IN","342.32","Hire of Vehicles","190426095","23/02/2018","Fleet Services","Fleet Management","R3200"
"Wolverhampton City Council","http://opendatacommunities.org/id/metropolitan-district-council/wolverhampton","705946","Northgate Vehicle Hire Limited","SL04843660IN","306.46","Hire of Vehicles","190426102","23/02/2018","Fleet Services","Fleet Management","R3200"
"Wolverhampton City Council","http://opendatacommunities.org/id/metropolitan-district-council/wolverhampton","705946","Northgate Vehicle Hire Limited","SL04843606IN","342.32","Hire of Vehicles","190426067","23/02/2018","Fleet Services","Fleet Management","R3200"
"Wolverhampton City Council","http://opendatacommunities.org/id/metropolitan-district-council/wolverhampton","705946","Northgate Vehicle Hire Limited","SL04843625IN","342.32","Hire of Vehicles","190426079","23/02/2018","Fleet Services","Fleet Management","R3200"
"Wolverhampton City Council","http://opendatacommunities.org/id/metropolitan-district-council/wolverhampton","705946","Northgate Vehicle Hire Limited","SL04843651IN","306.46","Hire of Vehicles","190426096","23/02/2018","Fleet Services","Fleet Management","R3200"
"Wolverhampton City Council","http://opendatacommunities.org/id/metropolitan-district-council/wolverhampton","705946","Northgate Vehicle Hire Limited","SL04843621IN","342.32","Hire of Vehicles","190426076","23/02/2018","Fleet Services","Fleet Management","R3200"
"Wolverhampton City Council","http://opendatacommunities.org/id/metropolitan-district-council/wolverhampton","705946","Northgate Vehicle Hire Limited","SL04843603IN","318.56","Hire of Vehicles","190426066","23/02/2018","Fleet Services","Fleet Management","R3200"
"Wolverhampton City Council","http://opendatacommunities.org/id/metropolitan-district-council/wolverhampton","705946","Northgate Vehicle Hire Limited","SL04843627IN","342.32","Hire of Vehicles","190426080","23/02/2018","Fleet Services","Fleet Management","R3200"
"Wolverhampton City Council","http://opendatacommunities.org/id/metropolitan-district-council/wolverhampton","705946","Northgate Vehicle Hire Limited","SL04843654IN","342.32","Hire of Vehicles","190426098","23/02/2018","Fleet Services","Fleet Management","R3200"
"Wolverhampton City Council","http://opendatacommunities.org/id/metropolitan-district-council/wolverhampton","705946","Northgate Vehicle Hire Limited","SL04843629IN","306.46","Hire of Vehicles","190426081","23/02/2018","Fleet Services","Fleet Management","R3200"
"Wolverhampton City Council","http://opendatacommunities.org/id/metropolitan-district-council/wolverhampton","705946","Northgate Vehicle Hire Limited","SL04843612IN","306.46","Hire of Vehicles","190426071","23/02/2018","Fleet Services","Fleet Management","R3200"
"Wolverhampton City Council","http://opendatacommunities.org/id/metropolitan-district-council/wolverhampton","705946","Northgate Vehicle Hire Limited","SL04843637IN","306.46","Hire of Vehicles","190426086","23/02/2018","Fleet Services","Fleet Management","R3200"
"Wolverhampton City Council","http://opendatacommunities.org/id/metropolitan-district-council/wolverhampton","705946","Northgate Vehicle Hire Limited","SL04843635IN","224.40","Hire of Vehicles","190426085","23/02/2018","Fleet Services","Fleet Management","R3200"
"Wolverhampton City Council","http://opendatacommunities.org/id/metropolitan-district-council/wolverhampton","705946","Northgate Vehicle Hire Limited","SL04843648IN","224.40","Hire of Vehicles","190426094","23/02/2018","Fleet Services","Fleet Management","R3200"
"Wolverhampton City Council","http://opendatacommunities.org/id/metropolitan-district-council/wolverhampton","705946","Northgate Vehicle Hire Limited","SL04843676IN","56.10","Hire of Vehicles","190426114","23/02/2018","Fleet Services","Fleet Management","R3200"
"Wolverhampton City Council","http://opendatacommunities.org/id/metropolitan-district-council/wolverhampton","705946","Northgate Vehicle Hire Limited","SL04843667IN","190.52","Hire of Vehicles","190426107","23/02/2018","Fleet Services","Fleet Management","R3200"
"Wolverhampton City Council","http://opendatacommunities.org/id/metropolitan-district-council/wolverhampton","705946","Northgate Vehicle Hire Limited","SL04843657IN","306.46","Hire of Vehicles","190426100","23/02/2018","Fleet Services","Fleet Management","R3200"
"Wolverhampton City Council","http://opendatacommunities.org/id/metropolitan-district-council/wolverhampton","705946","Northgate Vehicle Hire Limited","SL04843643IN","342.32","Hire of Vehicles","190426090","23/02/2018","Fleet Services","Fleet Management","R3200"
"Wolverhampton City Council","http://opendatacommunities.org/id/metropolitan-district-council/wolverhampton","705946","Northgate Vehicle Hire Limited","SL04843624IN","342.32","Hire of Vehicles","190426078","23/02/2018","Fleet Services","Fleet Management","R3200"
"Wolverhampton City Council","http://opendatacommunities.org/id/metropolitan-district-council/wolverhampton","705946","Northgate Vehicle Hire Limited","SL04843674IN","344.76","Hire of Vehicles","190426113","23/02/2018","Fleet Services","Fleet Management","R3200"
"Wolverhampton City Council","http://opendatacommunities.org/id/metropolitan-district-council/wolverhampton","705946","Northgate Vehicle Hire Limited","SL04843608IN","306.46","Hire of Vehicles","190426068","23/02/2018","Fleet Services","Fleet Management","R3200"
"Wolverhampton City Council","http://opendatacommunities.org/id/metropolitan-district-council/wolverhampton","705946","Northgate Vehicle Hire Limited","SL04843616IN","306.46","Hire of Vehicles","190426073","23/02/2018","Fleet Services","Fleet Management","R3200"
"Wolverhampton City Council","http://opendatacommunities.org/id/metropolitan-district-council/wolverhampton","705946","Northgate Vehicle Hire Limited","SL04843634IN","448.80","Hire of Vehicles","190426084","23/02/2018","Fleet Services","Fleet Management","R3200"
"Wolverhampton City Council","http://opendatacommunities.org/id/metropolitan-district-council/wolverhampton","705946","Northgate Vehicle Hire Limited","SL04843641IN","224.40","Hire of Vehicles","190426089","23/02/2018","Fleet Services","Fleet Management","R3200"
"Wolverhampton City Council","http://opendatacommunities.org/id/metropolitan-district-council/wolverhampton","705946","Northgate Vehicle Hire Limited","SL04843646IN","306.46","Hire of Vehicles","190426092","23/02/2018","Fleet Services","Fleet Management","R3200"
"Wolverhampton City Council","http://opendatacommunities.org/id/metropolitan-district-council/wolverhampton","705946","Northgate Vehicle Hire Limited","SL04843663IN","190.52","Hire of Vehicles","190426104","23/02/2018","Fleet Services","Fleet Management","R3200"
"Wolverhampton City Council","http://opendatacommunities.org/id/metropolitan-district-council/wolverhampton","705946","Northgate Vehicle Hire Limited","SL04843669IN","224.40","Hire of Vehicles","190426109","23/02/2018","Fleet Services","Fleet Management","R3200"
"Wolverhampton City Council","http://opendatacommunities.org/id/metropolitan-district-council/wolverhampton","705946","Northgate Vehicle Hire Limited","SL04843672IN","190.52","Hire of Vehicles","190426111","23/02/2018","Fleet Services","Fleet Management","R3200"
"Wolverhampton City Council","http://opendatacommunities.org/id/metropolitan-district-council/wolverhampton","705946","Northgate Vehicle Hire Limited","SL04843611IN","317.46","Hire of Vehicles","190426070","23/02/2018","Fleet Services","Fleet Management","R3200"
"Wolverhampton City Council","http://opendatacommunities.org/id/metropolitan-district-council/wolverhampton","705946","Northgate Vehicle Hire Limited","SL04843632IN","342.32","Hire of Vehicles","190426083","23/02/2018","Fleet Services","Fleet Management","R3200"
"Wolverhampton City Council","http://opendatacommunities.org/id/metropolitan-district-council/wolverhampton","705946","Northgate Vehicle Hire Limited","SL04843653IN","306.46","Hire of Vehicles","190426097","23/02/2018","Fleet Services","Fleet Management","R3200"
"Wolverhampton City Council","http://opendatacommunities.org/id/metropolitan-district-council/wolverhampton","705946","Northgate Vehicle Hire Limited","SL04843655IN","318.56","Hire of Vehicles","190426099","23/02/2018","Fleet Services","Fleet Management","R3200"
"Wolverhampton City Council","http://opendatacommunities.org/id/metropolitan-district-council/wolverhampton","705946","Northgate Vehicle Hire Limited","SL04843622IN","342.32","Hire of Vehicles","190426077","23/02/2018","Fleet Services","Fleet Management","R3200"
"Wolverhampton City Council","http://opendatacommunities.org/id/metropolitan-district-council/wolverhampton","705946","Northgate Vehicle Hire Limited","SL04843668IN","342.32","Hire of Vehicles","190426108","23/02/2018","Fleet Services","Fleet Management","R3200"
"Wolverhampton City Council","http://opendatacommunities.org/id/metropolitan-district-council/wolverhampton","705946","Northgate Vehicle Hire Limited","SL04843639IN","224.40","Hire of Vehicles","190426087","23/02/2018","Fleet Services","Fleet Management","R3200"
"Wolverhampton City Council","http://opendatacommunities.org/id/metropolitan-district-council/wolverhampton","705946","Northgate Vehicle Hire Limited","SL04843658IN","224.40","Hire of Vehicles","190426101","23/02/2018","Fleet Services","Fleet Management","R3200"
"Wolverhampton City Council","http://opendatacommunities.org/id/metropolitan-district-council/wolverhampton","705946","Northgate Vehicle Hire Limited","SL04843640IN","306.46","Hire of Vehicles","190426088","23/02/2018","Fleet Services","Fleet Management","R3200"
"Wolverhampton City Council","http://opendatacommunities.org/id/metropolitan-district-council/wolverhampton","705946","Northgate Vehicle Hire Limited","SL04843670IN","190.52","Hire of Vehicles","190426110","23/02/2018","Fleet Services","Fleet Management","R3200"
"Wolverhampton City Council","http://opendatacommunities.org/id/metropolitan-district-council/wolverhampton","705946","Northgate Vehicle Hire Limited","SL04843661IN","190.52","Hire of Vehicles","190426103","23/02/2018","Fleet Services","Fleet Management","R3200"
"Wolverhampton City Council","http://opendatacommunities.org/id/metropolitan-district-council/wolverhampton","705946","Northgate Vehicle Hire Limited","SL04843665IN","317.46","Hire of Vehicles","190426106","23/02/2018","Fleet Services","Fleet Management","R3200"
"Wolverhampton City Council","http://opendatacommunities.org/id/metropolitan-district-council/wolverhampton","705946","Northgate Vehicle Hire Limited","SL04817773IN","97.10","Hire of Vehicles","190426065","23/02/2018","Fleet Services","Fleet Management","R3200"
"Wolverhampton City Council","http://opendatacommunities.org/id/metropolitan-district-council/wolverhampton","705946","Northgate Vehicle Hire Limited","SL04843615IN","306.46","Hire of Vehicles","190426072","23/02/2018","Fleet Services","Fleet Management","R3200"
"Wolverhampton City Council","http://opendatacommunities.org/id/metropolitan-district-council/wolverhampton","705946","Northgate Vehicle Hire Limited","SL04843644IN","335.50","Hire of Vehicles","190426091","23/02/2018","Fleet Services","Fleet Management","R3200"
"Wolverhampton City Council","http://opendatacommunities.org/id/metropolitan-district-council/wolverhampton","705954","Nottingham Rehab Supplies/Nrs Limited","97490170","39.95","Equipment - R & M","130203356","14/02/2018","Independent Living Service","Independent Living Service","R4003"
"Wolverhampton City Council","http://opendatacommunities.org/id/metropolitan-district-council/wolverhampton","705954","Nottingham Rehab Supplies/Nrs Limited","97493579","189.57","Equipment - Purchase","130204426","23/02/2018","Catering","Education Catering - General Overheads","R4000"
"Wolverhampton City Council","http://opendatacommunities.org/id/metropolitan-district-council/wolverhampton","705954","Nottingham Rehab Supplies/Nrs Limited","1800096729","2,723.07","Equipment - R & M","130202467","02/02/2018","Independent Living Service","Independent Living Service","R4003"
"Wolverhampton City Council","http://opendatacommunities.org/id/metropolitan-district-council/wolverhampton","705954","Nottingham Rehab Supplies/Nrs Limited","97493227","2,747.88","Equipment - Purchase","130204045","21/02/2018","Independent Living Service","Independent Living Service","R4000"
"Wolverhampton City Council","http://opendatacommunities.org/id/metropolitan-district-council/wolverhampton","705954","Nottingham Rehab Supplies/Nrs Limited","97493227","-2,747.88","Equipment - Purchase","130204045","21/02/2018","Independent Living Service","Independent Living Service","R4000"
"Wolverhampton City Council","http://opendatacommunities.org/id/metropolitan-district-council/wolverhampton","705954","Nottingham Rehab Supplies/Nrs Limited","97493227","2,667.44","Equipment - Purchase","130204045","21/02/2018","Independent Living Service","Independent Living Service","R4000"
"Wolverhampton City Council","http://opendatacommunities.org/id/metropolitan-district-council/wolverhampton","705957","Nova Training Limited","OTH001533","21.00","TPP - Alternative Provision of Education","130206501","21/02/2018","Specialist Support","Alternative Provision","R5037"
"Wolverhampton City Council","http://opendatacommunities.org/id/metropolitan-district-council/wolverhampton","705957","Nova Training Limited","5144","5,024.32","TPP - Alternative Provision of Education","130204942","07/02/2018","Standards and Vulnerable Pupils","Post 16 SEN Provision","R5037"
"Wolverhampton City Council","http://opendatacommunities.org/id/metropolitan-district-council/wolverhampton","705957","Nova Training Limited","CG001594","185.00","TPP - Alternative Provision of Education","130205656","14/02/2018","Specialist Support","Alternative Provision","R5037"
"Wolverhampton City Council","http://opendatacommunities.org/id/metropolitan-district-council/wolverhampton","705957","Nova Training Limited","OTH001540","21.00","TPP - Alternative Provision of Education","130205658","14/02/2018","Specialist Support","Alternative Provision","R5037"
"Wolverhampton City Council","http://opendatacommunities.org/id/metropolitan-district-council/wolverhampton","705957","Nova Training Limited","CG001585","185.00","TPP - Alternative Provision of Education","130206500","21/02/2018","Specialist Support","Alternative Provision","R5037"
"Wolverhampton City Council","http://opendatacommunities.org/id/metropolitan-district-council/wolverhampton","705957","Nova Training Limited","5139","2,030.93","TPP - Alternative Provision of Education","130204941","07/02/2018","Standards and Vulnerable Pupils","Post 16 SEN Provision","R5037"
"Wolverhampton City Council","http://opendatacommunities.org/id/metropolitan-district-council/wolverhampton","705957","Nova Training Limited","SCH004884","2,538.00","TPP - Alternative Provision of Education","130206352","16/02/2018","Specialist Support","Alternative Provision","R5037"
"Wolverhampton City Council","http://opendatacommunities.org/id/metropolitan-district-council/wolverhampton","705957","Nova Training Limited","SCH004934","1,339.50","TPP - Alternative Provision of Education","130205659","14/02/2018","Specialist Support","Alternative Provision","R5037"
"Wolverhampton City Council","http://opendatacommunities.org/id/metropolitan-district-council/wolverhampton","705957","Nova Training Limited","CG001595","151.00","TPP - Alternative Provision of Education","130205657","14/02/2018","Specialist Support","Alternative Provision","R5037"
"Wolverhampton City Council","http://opendatacommunities.org/id/metropolitan-district-council/wolverhampton","705957","Nova Training Limited","SCH004935","1,269.00","TPP - Alternative Provision of Education","130205660","14/02/2018","Specialist Support","Alternative Provision","R5037"
"Wolverhampton City Council","http://opendatacommunities.org/id/metropolitan-district-council/wolverhampton","705957","Nova Training Limited","5123","2,766.03","TPP - Alternative Provision of Education","130204940","21/02/2018","Standards and Vulnerable Pupils","Post 16 SEN Provision","R5037"
"Wolverhampton City Council","http://opendatacommunities.org/id/metropolitan-district-council/wolverhampton","705957","Nova Training Limited","5148","2,111.88","TPP - Alternative Provision of Education","130204943","07/02/2018","Standards and Vulnerable Pupils","Post 16 SEN Provision","R5037"
"Wolverhampton City Council","http://opendatacommunities.org/id/metropolitan-district-council/wolverhampton","705960","Novotel Wolverhampton","17257","300.00","Room Hire","130206599","23/02/2018","Licensing","Licensing - Private Hire Vehicles","R2201"
"Wolverhampton City Council","http://opendatacommunities.org/id/metropolitan-district-council/wolverhampton","705960","Novotel Wolverhampton","17257","40.00","Catering","130206599","23/02/2018","Licensing","Licensing - Private Hire Vehicles","R4100"
"Wolverhampton City Council","http://opendatacommunities.org/id/metropolitan-district-council/wolverhampton","705960","Novotel Wolverhampton","17257","-300.00","Room Hire","130206599","23/02/2018","Licensing","Licensing - Private Hire Vehicles","R2201"
"Wolverhampton City Council","http://opendatacommunities.org/id/metropolitan-district-council/wolverhampton","705960","Novotel Wolverhampton","17257","243.33","Room Hire","130206599","23/02/2018","Licensing","Licensing - Private Hire Vehicles","R2201"
"Wolverhampton City Council","http://opendatacommunities.org/id/metropolitan-district-council/wolverhampton","705960","Novotel Wolverhampton","17365","513.33","Catering","130203546","14/02/2018","Digital Transformation Programme","Digital Transformation Programme","R4100"
"Wolverhampton City Council","http://opendatacommunities.org/id/metropolitan-district-council/wolverhampton","705960","Novotel Wolverhampton","17366","500.00","Room Hire","130203547","14/02/2018","Human Resources","Centralised Training","R2201"
"Wolverhampton City Council","http://opendatacommunities.org/id/metropolitan-district-council/wolverhampton","705960","Novotel Wolverhampton","17256","-300.00","Room Hire","130206598","23/02/2018","Licensing","Licensing - Private Hire Vehicles","R2201"
"Wolverhampton City Council","http://opendatacommunities.org/id/metropolitan-district-council/wolverhampton","705960","Novotel Wolverhampton","17256","243.33","Room Hire","130206598","23/02/2018","Licensing","Licensing - Private Hire Vehicles","R2201"
"Wolverhampton City Council","http://opendatacommunities.org/id/metropolitan-district-council/wolverhampton","705960","Novotel Wolverhampton","17256","300.00","Room Hire","130206598","23/02/2018","Licensing","Licensing - Private Hire Vehicles","R2201"
"Wolverhampton City Council","http://opendatacommunities.org/id/metropolitan-district-council/wolverhampton","705960","Novotel Wolverhampton","17256","40.00","Catering","130206598","23/02/2018","Licensing","Licensing - Private Hire Vehicles","R4100"
"Wolverhampton City Council","http://opendatacommunities.org/id/metropolitan-district-council/wolverhampton","705960","Novotel Wolverhampton","17268","300.00","Room Hire","130206600","23/02/2018","Licensing","Licensing - Private Hire Vehicles","R2201"
"Wolverhampton City Council","http://opendatacommunities.org/id/metropolitan-district-council/wolverhampton","705960","Novotel Wolverhampton","17268","40.00","Catering","130206600","23/02/2018","Licensing","Licensing - Private Hire Vehicles","R4100"
"Wolverhampton City Council","http://opendatacommunities.org/id/metropolitan-district-council/wolverhampton","705960","Novotel Wolverhampton","17268","127.50","Catering","130206600","23/02/2018","Licensing","Licensing - Private Hire Vehicles","R4100"
"Wolverhampton City Council","http://opendatacommunities.org/id/metropolitan-district-council/wolverhampton","705960","Novotel Wolverhampton","17268","-300.00","Room Hire","130206600","23/02/2018","Licensing","Licensing - Private Hire Vehicles","R2201"
"Wolverhampton City Council","http://opendatacommunities.org/id/metropolitan-district-council/wolverhampton","705960","Novotel Wolverhampton","17268","222.08","Room Hire","130206600","23/02/2018","Licensing","Licensing - Private Hire Vehicles","R2201"
"Wolverhampton City Council","http://opendatacommunities.org/id/metropolitan-district-council/wolverhampton","705963","Now Medical","WOL1217","25.00","Medical Fees","190427726","28/02/2018","Housing Revenue Account","Duty Office","R1400"
"Wolverhampton City Council","http://opendatacommunities.org/id/metropolitan-district-council/wolverhampton","705964","NPOWER","79412550060/NP0294","38.09","Electricity","190427746","28/02/2018","Housing Revenue Account","Hostels / Outreach","R2100"
"Wolverhampton City Council","http://opendatacommunities.org/id/metropolitan-district-council/wolverhampton","705964","NPOWER","79658059440/NP0295","794.00","Electricity","190427756","28/02/2018","Housing Revenue Account","Hostels / Outreach","R2100"
"Wolverhampton City Council","http://opendatacommunities.org/id/metropolitan-district-council/wolverhampton","705964","NPOWER","79746576000/NP0296","644.56","Electricity","190427757","28/02/2018","Housing Revenue Account","Hostels / Outreach","R2100"
"Wolverhampton City Council","http://opendatacommunities.org/id/metropolitan-district-council/wolverhampton","705964","NPOWER","79565756800/NP0303","315.06","Electricity","190427764","28/02/2018","Housing Revenue Account","Hostels / Outreach","R2100"
"Wolverhampton City Council","http://opendatacommunities.org/id/metropolitan-district-council/wolverhampton","705964","NPOWER","79728787730/NP0307","13,296.37","Electricity","190427768","28/02/2018","Housing Revenue Account","Hostels / Outreach","R2100"
"Wolverhampton City Council","http://opendatacommunities.org/id/metropolitan-district-council/wolverhampton","705964","NPOWER","79978575160c(01/08/17 - 24/08/17)","81.93","Electricity","190425567","21/02/2018","Estates and Valuations","Industrial Premises ; Fordhouse Road","R2100"
"Wolverhampton City Council","http://opendatacommunities.org/id/metropolitan-district-council/wolverhampton","705964","NPOWER","79728787730/NP0296","2,285.71","Electricity","190427748","28/02/2018","Housing Revenue Account","Hostels / Outreach","R2100"
"Wolverhampton City Council","http://opendatacommunities.org/id/metropolitan-district-council/wolverhampton","705964","NPOWER","79708947120/NP0297","1,183.82","Electricity","190427749","28/02/2018","Housing Revenue Account","Hostels / Outreach","R2100"
"Wolverhampton City Council","http://opendatacommunities.org/id/metropolitan-district-council/wolverhampton","705964","NPOWER","79658059440/NP0292","962.84","Electricity","190427753","28/02/2018","Housing Revenue Account","Hostels / Outreach","R2100"
"Wolverhampton City Council","http://opendatacommunities.org/id/metropolitan-district-council/wolverhampton","705964","NPOWER","79317409980/NP0297","539.97","Electricity","190427758","28/02/2018","Housing Revenue Account","Hostels / Outreach","R2100"
"Wolverhampton City Council","http://opendatacommunities.org/id/metropolitan-district-council/wolverhampton","705964","NPOWER","79872600700/NP0306","38.10","Electricity","190427767","28/02/2018","Housing Revenue Account","Hostels / Outreach","R2100"
"Wolverhampton City Council","http://opendatacommunities.org/id/metropolitan-district-council/wolverhampton","705964","NPOWER","79037534440/NP0300","372.55","Electricity","190427761","28/02/2018","Housing Revenue Account","Hostels / Outreach","R2100"
"Wolverhampton City Council","http://opendatacommunities.org/id/metropolitan-district-council/wolverhampton","705964","NPOWER","79978575160b(25/05/17 - 31/07/17)","199.82","Electricity","190425566","21/02/2018","Estates and Valuations","Industrial Premises ; Fordhouse Road","R2100"
"Wolverhampton City Council","http://opendatacommunities.org/id/metropolitan-district-council/wolverhampton","705964","NPOWER","79180763890/NP0299","485.70","Electricity","190427760","28/02/2018","Housing Revenue Account","Hostels / Outreach","R2100"
"Wolverhampton City Council","http://opendatacommunities.org/id/metropolitan-district-council/wolverhampton","705964","NPOWER","79408231160/NP0304","246.90","Electricity","190427765","28/02/2018","Housing Revenue Account","Hostels / Outreach","R2100"
"Wolverhampton City Council","http://opendatacommunities.org/id/metropolitan-district-council/wolverhampton","705964","NPOWER","79412550060/NP0302","359.87","Electricity","190427763","28/02/2018","Housing Revenue Account","Hostels / Outreach","R2100"
"Wolverhampton City Council","http://opendatacommunities.org/id/metropolitan-district-council/wolverhampton","705964","NPOWER","79549928880/NP0294","798.86","Electricity","190427755","28/02/2018","Housing Revenue Account","Hostels / Outreach","R2100"
"Wolverhampton City Council","http://opendatacommunities.org/id/metropolitan-district-council/wolverhampton","705964","NPOWER","792661433080/NP0291","1,035.77","Electricity","190427752","28/02/2018","Housing Revenue Account","Hostels / Outreach","R2100"
"Wolverhampton City Council","http://opendatacommunities.org/id/metropolitan-district-council/wolverhampton","705964","NPOWER","79872600700/NP0298","533.51","Electricity","190427759","28/02/2018","Housing Revenue Account","Hostels / Outreach","R2100"
"Wolverhampton City Council","http://opendatacommunities.org/id/metropolitan-district-council/wolverhampton","705964","NPOWER","NP0285-79034839190 - Bacs Rejection","829.80","Electricity","130206131","14/02/2018","Housing Revenue Account","Hostels / Outreach","R2100"
"Wolverhampton City Council","http://opendatacommunities.org/id/metropolitan-district-council/wolverhampton","705964","NPOWER","79978575160a(Brought forward from previous invoice)","1,103.30","Electricity","190425565","21/02/2018","Estates and Valuations","Industrial Premises ; Fordhouse Road","R2100"
"Wolverhampton City Council","http://opendatacommunities.org/id/metropolitan-district-council/wolverhampton","705964","NPOWER","79978575160e (42/08/17 - 08/11/17)","105.16","Electricity","190425569","21/02/2018","Estates and Valuations","Industrial Premises ; Fordhouse Road","R2100"
"Wolverhampton City Council","http://opendatacommunities.org/id/metropolitan-district-council/wolverhampton","705964","NPOWER","79943478860/NP0290","1,467.49","Electricity","190427751","28/02/2018","Housing Revenue Account","Hostels / Outreach","R2100"
"Wolverhampton City Council","http://opendatacommunities.org/id/metropolitan-district-council/wolverhampton","705964","NPOWER","79008077050/NP0298","1,109.24","Electricity","190427750","28/02/2018","Housing Revenue Account","Hostels / Outreach","R2100"
"Wolverhampton City Council","http://opendatacommunities.org/id/metropolitan-district-council/wolverhampton","705964","NPOWER","79872600700/NP0295","38.10","Electricity","190427747","28/02/2018","Housing Revenue Account","Hostels / Outreach","R2100"
"Wolverhampton City Council","http://opendatacommunities.org/id/metropolitan-district-council/wolverhampton","705964","NPOWER","79034839190/NP0293","948.34","Electricity","190427754","28/02/2018","Housing Revenue Account","Hostels / Outreach","R2100"
"Wolverhampton City Council","http://opendatacommunities.org/id/metropolitan-district-council/wolverhampton","705964","NPOWER","79742120740/NP0305","4.78","Electricity","190427766","28/02/2018","Housing Revenue Account","Hostels / Outreach","R2100"
"Wolverhampton City Council","http://opendatacommunities.org/id/metropolitan-district-council/wolverhampton","705964","NPOWER","79660575500/NP0301","368.71","Electricity","190427762","28/02/2018","Housing Revenue Account","Hostels / Outreach","R2100"
"Wolverhampton City Council","http://opendatacommunities.org/id/metropolitan-district-council/wolverhampton","705964","NPOWER","79895639160d(06/07/17 - 19/10/17)","459.40","Electricity","190425568","21/02/2018","Estates and Valuations","Industrial Premises ; Fordhouse Road","R2100"
"Wolverhampton City Council","http://opendatacommunities.org/id/metropolitan-district-council/wolverhampton","705964","NPOWER","79978575160 (42/08/17 - 08/11/17)","105.16","Electricity","190418421","07/02/2018","Estates and Valuations","Industrial Premises ; Fordhouse Road","R2100"
"Wolverhampton City Council","http://opendatacommunities.org/id/metropolitan-district-council/wolverhampton","705972","NSR Management Limited","12275","2,970.00","Computing - Purchase of Software","130201926","07/02/2018","Capital Programme","Capital Programme Team","R4531"
"Wolverhampton City Council","http://opendatacommunities.org/id/metropolitan-district-council/wolverhampton","705979","Numatic International Limited","13237734","47.98","Equipment - Purchase","190425705","21/02/2018","Fleet Services","Fleet Management","R4000"
"Wolverhampton City Council","http://opendatacommunities.org/id/metropolitan-district-council/wolverhampton","705979","Numatic International Limited","13237734","9.41","Equipment - Purchase","190425705","21/02/2018","Fleet Services","Fleet Management","R4000"
"Wolverhampton City Council","http://opendatacommunities.org/id/metropolitan-district-council/wolverhampton","705979","Numatic International Limited","13237734","7.94","Equipment - Purchase","190425705","21/02/2018","Fleet Services","Fleet Management","R4000"
"Wolverhampton City Council","http://opendatacommunities.org/id/metropolitan-district-council/wolverhampton","705979","Numatic International Limited","13237911","93.73","Equipment - Purchase","190425706","21/02/2018","Fleet Services","Fleet Management","R4000"
"Wolverhampton City Council","http://opendatacommunities.org/id/metropolitan-district-council/wolverhampton","705979","Numatic International Limited","13237808","438.36","Equipment - Purchase","190421007","14/02/2018","Fleet Services","Fleet Management","R4000"
"Wolverhampton City Council","http://opendatacommunities.org/id/metropolitan-district-council/wolverhampton","705986","Nutmeg UK Limited","12243","1,059.78","Training Expenses","130206195","21/02/2018","Catering","School Meals Statutory standards","R1650"
"Wolverhampton City Council","http://opendatacommunities.org/id/metropolitan-district-council/wolverhampton","705995","Oakley�S Limited","170668","17.21","Equipment - Purchase","190425717","21/02/2018","Fleet Services","Fleet Management","R4000"
"Wolverhampton City Council","http://opendatacommunities.org/id/metropolitan-district-council/wolverhampton","705995","Oakley�S Limited","170592","17.60","Equipment - Purchase","190423144","14/02/2018","Fleet Services","Fleet Management","R4000"
"Wolverhampton City Council","http://opendatacommunities.org/id/metropolitan-district-council/wolverhampton","705995","Oakley�S Limited","170540","177.34","Equipment - Purchase","190425715","21/02/2018","Fleet Services","Fleet Management","R4000"
"Wolverhampton City Council","http://opendatacommunities.org/id/metropolitan-district-council/wolverhampton","705995","Oakley�S Limited","170540","131.98","Equipment - Purchase","190425715","21/02/2018","Fleet Services","Fleet Management","R4000"
"Wolverhampton City Council","http://opendatacommunities.org/id/metropolitan-district-council/wolverhampton","705995","Oakley�S Limited","170540","150.89","Equipment - Purchase","190425715","21/02/2018","Fleet Services","Fleet Management","R4000"
"Wolverhampton City Council","http://opendatacommunities.org/id/metropolitan-district-council/wolverhampton","705995","Oakley�S Limited","170540","46.49","Equipment - Purchase","190425715","21/02/2018","Fleet Services","Fleet Management","R4000"
"Wolverhampton City Council","http://opendatacommunities.org/id/metropolitan-district-council/wolverhampton","705995","Oakley�S Limited","170215","3.95","Equipment - Purchase","190428031","28/02/2018","Fleet Services","Fleet Management","R4000"
"Wolverhampton City Council","http://opendatacommunities.org/id/metropolitan-district-council/wolverhampton","705995","Oakley�S Limited","170215","10.50","Equipment - Purchase","190428031","28/02/2018","Fleet Services","Fleet Management","R4000"
"Wolverhampton City Council","http://opendatacommunities.org/id/metropolitan-district-council/wolverhampton","705995","Oakley�S Limited","170215","73.79","Equipment - Purchase","190428031","28/02/2018","Fleet Services","Fleet Management","R4000"
"Wolverhampton City Council","http://opendatacommunities.org/id/metropolitan-district-council/wolverhampton","705995","Oakley�S Limited","170348","16.97","Equipment - Purchase","190426844","23/02/2018","Fleet Services","Fleet Management","R4000"
"Wolverhampton City Council","http://opendatacommunities.org/id/metropolitan-district-council/wolverhampton","705995","Oakley�S Limited","170748","66.77","Equipment - Purchase","190428032","28/02/2018","Fleet Services","Fleet Management","R4000"
"Wolverhampton City Council","http://opendatacommunities.org/id/metropolitan-district-council/wolverhampton","705995","Oakley�S Limited","170748","89.45","Equipment - Purchase","190428032","28/02/2018","Fleet Services","Fleet Management","R4000"
"Wolverhampton City Council","http://opendatacommunities.org/id/metropolitan-district-council/wolverhampton","705995","Oakley�S Limited","170748","8.60","Equipment - Purchase","190428032","28/02/2018","Fleet Services","Fleet Management","R4000"
"Wolverhampton City Council","http://opendatacommunities.org/id/metropolitan-district-council/wolverhampton","705995","Oakley�S Limited","170748","86.98","Equipment - Purchase","190428032","28/02/2018","Fleet Services","Fleet Management","R4000"
"Wolverhampton City Council","http://opendatacommunities.org/id/metropolitan-district-council/wolverhampton","705995","Oakley�S Limited","170748","27.35","Equipment - Purchase","190428032","28/02/2018","Fleet Services","Fleet Management","R4000"
"Wolverhampton City Council","http://opendatacommunities.org/id/metropolitan-district-council/wolverhampton","705995","Oakley�S Limited","170748","196.46","Equipment - Purchase","190428032","28/02/2018","Fleet Services","Fleet Management","R4000"
"Wolverhampton City Council","http://opendatacommunities.org/id/metropolitan-district-council/wolverhampton","705995","Oakley�S Limited","170748","95.27","Equipment - Purchase","190428032","28/02/2018","Fleet Services","Fleet Management","R4000"
"Wolverhampton City Council","http://opendatacommunities.org/id/metropolitan-district-council/wolverhampton","705995","Oakley�S Limited","170748","45.78","Equipment - Purchase","190428032","28/02/2018","Fleet Services","Fleet Management","R4000"
"Wolverhampton City Council","http://opendatacommunities.org/id/metropolitan-district-council/wolverhampton","705995","Oakley�S Limited","170328","3.72","Equipment - Purchase","190426843","23/02/2018","Fleet Services","Fleet Management","R4000"
"Wolverhampton City Council","http://opendatacommunities.org/id/metropolitan-district-council/wolverhampton","705995","Oakley�S Limited","170328","0.86","Equipment - Purchase","190426843","23/02/2018","Fleet Services","Fleet Management","R4000"
"Wolverhampton City Council","http://opendatacommunities.org/id/metropolitan-district-council/wolverhampton","705995","Oakley�S Limited","170328","4.77","Equipment - Purchase","190426843","23/02/2018","Fleet Services","Fleet Management","R4000"
"Wolverhampton City Council","http://opendatacommunities.org/id/metropolitan-district-council/wolverhampton","705995","Oakley�S Limited","170602","83.70","Equipment - Purchase","190423145","14/02/2018","Fleet Services","Fleet Management","R4000"
"Wolverhampton City Council","http://opendatacommunities.org/id/metropolitan-district-council/wolverhampton","705995","Oakley�S Limited","170475","218.86","Equipment - Purchase","190425714","21/02/2018","Fleet Services","Fleet Management","R4000"
"Wolverhampton City Council","http://opendatacommunities.org/id/metropolitan-district-council/wolverhampton","705995","Oakley�S Limited","170475","9.16","Equipment - Purchase","190425714","21/02/2018","Fleet Services","Fleet Management","R4000"
"Wolverhampton City Council","http://opendatacommunities.org/id/metropolitan-district-council/wolverhampton","705995","Oakley�S Limited","170475","95.83","Equipment - Purchase","190425714","21/02/2018","Fleet Services","Fleet Management","R4000"
"Wolverhampton City Council","http://opendatacommunities.org/id/metropolitan-district-council/wolverhampton","705995","Oakley�S Limited","170475","92.00","Equipment - Purchase","190425714","21/02/2018","Fleet Services","Fleet Management","R4000"
"Wolverhampton City Council","http://opendatacommunities.org/id/metropolitan-district-council/wolverhampton","705995","Oakley�S Limited","170590","259.67","Equipment - Purchase","190421009","09/02/2018","Fleet Services","Fleet Management","R4000"
"Wolverhampton City Council","http://opendatacommunities.org/id/metropolitan-district-council/wolverhampton","705995","Oakley�S Limited","170590","158.58","Equipment - Purchase","190421009","09/02/2018","Fleet Services","Fleet Management","R4000"
"Wolverhampton City Council","http://opendatacommunities.org/id/metropolitan-district-council/wolverhampton","705995","Oakley�S Limited","170435","100.00","Equipment - Purchase","130202761","07/02/2018","Leisure Services","Aldersley Leisure Village","R4000"
"Wolverhampton City Council","http://opendatacommunities.org/id/metropolitan-district-council/wolverhampton","705995","Oakley�S Limited","170684","43.67","Equipment - Purchase","190425718","21/02/2018","Fleet Services","Fleet Management","R4000"
"Wolverhampton City Council","http://opendatacommunities.org/id/metropolitan-district-council/wolverhampton","705995","Oakley�S Limited","170667","19.72","Equipment - Purchase","190425716","21/02/2018","Fleet Services","Fleet Management","R4000"
"Wolverhampton City Council","http://opendatacommunities.org/id/metropolitan-district-council/wolverhampton","705995","Oakley�S Limited","170684","6.84","Equipment - Purchase","190425718","21/02/2018","Fleet Services","Fleet Management","R4000"
"Wolverhampton City Council","http://opendatacommunities.org/id/metropolitan-district-council/wolverhampton","705995","Oakley�S Limited","170515","32.70","Equipment - Purchase","190421008","09/02/2018","Fleet Services","Fleet Management","R4000"
"Wolverhampton City Council","http://opendatacommunities.org/id/metropolitan-district-council/wolverhampton","705995","Oakley�S Limited","170103","2.01","Equipment - Purchase","190419467","07/02/2018","Fleet Services","Fleet Management","R4000"
"Wolverhampton City Council","http://opendatacommunities.org/id/metropolitan-district-council/wolverhampton","705995","Oakley�S Limited","170103","8.03","Equipment - Purchase","190419467","07/02/2018","Fleet Services","Fleet Management","R4000"
"Wolverhampton City Council","http://opendatacommunities.org/id/metropolitan-district-council/wolverhampton","705995","Oakley�S Limited","170103","8.03","Equipment - Purchase","190419467","07/02/2018","Fleet Services","Fleet Management","R4000"
"Wolverhampton City Council","http://opendatacommunities.org/id/metropolitan-district-council/wolverhampton","705995","Oakley�S Limited","170539","20.91","Equipment - Purchase","190423143","14/02/2018","Fleet Services","Fleet Management","R4000"
"Wolverhampton City Council","http://opendatacommunities.org/id/metropolitan-district-council/wolverhampton","705995","Oakley�S Limited","170539","33.59","Equipment - Purchase","190423143","14/02/2018","Fleet Services","Fleet Management","R4000"
"Wolverhampton City Council","http://opendatacommunities.org/id/metropolitan-district-council/wolverhampton","706007","OCR (Cambridge)","100992451","332.20","Exam Expenses (Non-Employee)","130202120","07/02/2018","Adult Education","Discretionary Fund","R4630"
"Wolverhampton City Council","http://opendatacommunities.org/id/metropolitan-district-council/wolverhampton","706012","Offa�S Press","EventsWolf2","115.00","Services - Consultants","190426772","23/02/2018","Strategic Organisation Development","Literature Festival","R4404"
"Wolverhampton City Council","http://opendatacommunities.org/id/metropolitan-district-council/wolverhampton","706013","Office Depot(UK)Limited","SINV00399213 - Correction","-51.83","Stationery","130206002","14/02/2018","Skills","IMPACT","R4308"
"Wolverhampton City Council","http://opendatacommunities.org/id/metropolitan-district-council/wolverhampton","706051","OOSHA Limited","509001","119.98","Comms - Telephone Rental","130207258","28/02/2018","Visitor Economy","Box Office Administration","R4504"
"Wolverhampton City Council","http://opendatacommunities.org/id/metropolitan-district-council/wolverhampton","706051","OOSHA Limited","509581","119.98","Comms - Telephone Rental","130205661","28/02/2018","Visitor Economy","Box Office Administration","R4504"
"Wolverhampton City Council","http://opendatacommunities.org/id/metropolitan-district-council/wolverhampton","706068","EE Limited","126193230","-100.00","Comms - Mobile Telephones","130201751","07/02/2018","ICTS","Strategic ICTS (ICT Service Budget)","R4507"
"Wolverhampton City Council","http://opendatacommunities.org/id/metropolitan-district-council/wolverhampton","706068","EE Limited","126174780","1,755.00","Comms - Mobile Telephones","130200536","07/02/2018","ICTS","Strategic ICTS (ICT Service Budget)","R4507"
"Wolverhampton City Council","http://opendatacommunities.org/id/metropolitan-district-council/wolverhampton","706068","EE Limited","126187255","420.00","Comms - Mobile Telephones","130200541","07/02/2018","ICTS","Strategic ICTS (ICT Service Budget)","R4507"
"Wolverhampton City Council","http://opendatacommunities.org/id/metropolitan-district-council/wolverhampton","706068","EE Limited","126174782","665.00","Comms - Mobile Telephones","130200538","07/02/2018","ICTS","Strategic ICTS (ICT Service Budget)","R4507"
"Wolverhampton City Council","http://opendatacommunities.org/id/metropolitan-district-council/wolverhampton","706068","EE Limited","126176926","-100.00","Comms - Mobile Telephones","130199010","07/02/2018","ICTS","Strategic ICTS (ICT Service Budget)","R4507"
"Wolverhampton City Council","http://opendatacommunities.org/id/metropolitan-district-council/wolverhampton","706068","EE Limited","126168989","-500.00","Comms - Mobile Telephones","130199874","07/02/2018","ICTS","Strategic ICTS (ICT Service Budget)","R4507"
"Wolverhampton City Council","http://opendatacommunities.org/id/metropolitan-district-council/wolverhampton","706068","EE Limited","126193231","-50.00","Comms - Mobile Telephones","130201752","07/02/2018","ICTS","Strategic ICTS (ICT Service Budget)","R4507"
"Wolverhampton City Council","http://opendatacommunities.org/id/metropolitan-district-council/wolverhampton","706068","EE Limited","126214591","-250.00","Comms - Mobile Telephones","130205663","28/02/2018","ICTS","Strategic ICTS (ICT Service Budget)","R4507"
"Wolverhampton City Council","http://opendatacommunities.org/id/metropolitan-district-council/wolverhampton","706068","EE Limited","01269950134","43.28","Comms - Mobile Telephones","130205662","28/02/2018","ICTS","Strategic ICTS (ICT Service Budget)","R4507"
"Wolverhampton City Council","http://opendatacommunities.org/id/metropolitan-district-council/wolverhampton","706068","EE Limited","126174784","-50.00","Comms - Mobile Telephones","130200540","07/02/2018","ICTS","Strategic ICTS (ICT Service Budget)","R4507"
"Wolverhampton City Council","http://opendatacommunities.org/id/metropolitan-district-council/wolverhampton","706068","EE Limited","126174781","390.00","Comms - Mobile Telephones","130200537","07/02/2018","ICTS","Strategic ICTS (ICT Service Budget)","R4507"
"Wolverhampton City Council","http://opendatacommunities.org/id/metropolitan-district-council/wolverhampton","706068","EE Limited","126174783","585.00","Comms - Mobile Telephones","130200539","07/02/2018","ICTS","Strategic ICTS (ICT Service Budget)","R4507"
"Wolverhampton City Council","http://opendatacommunities.org/id/metropolitan-district-council/wolverhampton","706068","EE Limited","126192528","155.00","Comms - Mobile Telephones","130201378","07/02/2018","ICTS","Strategic ICTS (ICT Service Budget)","R4507"
"Wolverhampton City Council","http://opendatacommunities.org/id/metropolitan-district-council/wolverhampton","706068","EE Limited","126161888","595.00","Comms - Mobile Telephones","130199872","07/02/2018","ICTS","Strategic ICTS (ICT Service Budget)","R4507"
"Wolverhampton City Council","http://opendatacommunities.org/id/metropolitan-district-council/wolverhampton","706068","EE Limited","126195189","-200.00","Comms - Mobile Telephones","130202121","07/02/2018","ICTS","Strategic ICTS (ICT Service Budget)","R4507"
"Wolverhampton City Council","http://opendatacommunities.org/id/metropolitan-district-council/wolverhampton","706068","EE Limited","126193229","-50.00","Comms - Mobile Telephones","130201750","07/02/2018","ICTS","Strategic ICTS (ICT Service Budget)","R4507"
"Wolverhampton City Council","http://opendatacommunities.org/id/metropolitan-district-council/wolverhampton","706068","EE Limited","126184597","390.00","Comms - Mobile Telephones","130200687","07/02/2018","ICTS","Strategic ICTS (ICT Service Budget)","R4507"
"Wolverhampton City Council","http://opendatacommunities.org/id/metropolitan-district-council/wolverhampton","706068","EE Limited","126175069","5,447.00","Comms - Mobile Telephones","130197797","28/02/2018","ICTS","Strategic ICTS (ICT Service Budget)","R4507"
"Wolverhampton City Council","http://opendatacommunities.org/id/metropolitan-district-council/wolverhampton","706068","EE Limited","126175069","1,098.00","Comms - Mobile Telephones","130197797","28/02/2018","ICTS","Strategic ICTS (ICT Service Budget)","R4507"
"Wolverhampton City Council","http://opendatacommunities.org/id/metropolitan-district-council/wolverhampton","706147","P Wilcox","PW17-35","4,935.00","Services - Professional Fees","130204596","28/02/2018","Standards and Vulnerable Pupils","Music Support Team","R4400"
"Wolverhampton City Council","http://opendatacommunities.org/id/metropolitan-district-council/wolverhampton","706154","P.F.Cusack (Tool Supplies) Limited","0000860102","42.90","Materials","130202122","02/02/2018","Highways Maintenance","Planned Highways Maintenance","R4007"
"Wolverhampton City Council","http://opendatacommunities.org/id/metropolitan-district-council/wolverhampton","706198","Parkeon Limited","UK104531","238.00","Equipment - R & M","130204598","23/02/2018","Parking Services","St Peter�s Car Park","R4003"
"Wolverhampton City Council","http://opendatacommunities.org/id/metropolitan-district-council/wolverhampton","706198","Parkeon Limited","UK104704","857.08","Equipment - R & M","130205097","28/02/2018","Parking Services","Car Parks Operational Staff","R4003"
"Wolverhampton City Council","http://opendatacommunities.org/id/metropolitan-district-council/wolverhampton","706198","Parkeon Limited","UK104705","10.00","Equipment - R & M","130205098","28/02/2018","Parking Services","St Peter�s Car Park","R4003"
"Wolverhampton City Council","http://opendatacommunities.org/id/metropolitan-district-council/wolverhampton","706200","Parkfield Medical Practice","FOS4030","75.86","Services - Professional Fees","190419168","07/02/2018","Looked After Children","Fostering Team & Allowances","R4400"
"Wolverhampton City Council","http://opendatacommunities.org/id/metropolitan-district-council/wolverhampton","706202","Parkfield Wolverhampton Medical Serv Ltd","FOS4037","73.86","Services - Professional Fees","190425623","21/02/2018","Looked After Children","Fostering Team & Allowances","R4400"
"Wolverhampton City Council","http://opendatacommunities.org/id/metropolitan-district-council/wolverhampton","706202","Parkfield Wolverhampton Medical Serv Ltd","FOS4038","73.86","Services - Professional Fees","190425624","21/02/2018","Looked After Children","Fostering Team & Allowances","R4400"
"Wolverhampton City Council","http://opendatacommunities.org/id/metropolitan-district-council/wolverhampton","706214","Passenger Lift Services Limited","111740","353.74","Equipment - Purchase","190425690","21/02/2018","Fleet Services","Fleet Management","R4000"
"Wolverhampton City Council","http://opendatacommunities.org/id/metropolitan-district-council/wolverhampton","706214","Passenger Lift Services Limited","111982","423.30","Equipment - Purchase","190425691","21/02/2018","Fleet Services","Fleet Management","R4000"
"Wolverhampton City Council","http://opendatacommunities.org/id/metropolitan-district-council/wolverhampton","706220","Patrol","8654","1,643.25","TPP - Traffic Management","130203358","14/02/2018","Parking Services","Parking Enforcement","R5050"
"Wolverhampton City Council","http://opendatacommunities.org/id/metropolitan-district-council/wolverhampton","706223","Patterson Medical Limited","5144431450","339.95","Equipment - Purchase","130191926","16/02/2018","Independent Living Service","Independent Living Service","R4000"
"Wolverhampton City Council","http://opendatacommunities.org/id/metropolitan-district-council/wolverhampton","706240","PDE Waste Technologies Limited","PDE18623","325.00","Equipment - Purchase","130204202","07/02/2018","Markets","Bilston Market and Licensed Operations","R4000"
"Wolverhampton City Council","http://opendatacommunities.org/id/metropolitan-district-council/wolverhampton","706290","Penham Excel Limited","311760","750.00","Services - Professional Fees","130205867","14/02/2018","Public Protection","EHTS Operational Costs","R4400"
"Wolverhampton City Council","http://opendatacommunities.org/id/metropolitan-district-council/wolverhampton","706290","Penham Excel Limited","311749","3,375.00","Services - Professional Fees","130206065","14/02/2018","Public Protection","EHTS Operational Costs","R4400"
"Wolverhampton City Council","http://opendatacommunities.org/id/metropolitan-district-council/wolverhampton","706298","Penn Kids Day Nursery","WILLS16THOCT-17THNOV","600.00","TPP - Child Care provided for client","130204770","28/02/2018","Adult Education","24+ Advanced Learning Loan","R5034"
"Wolverhampton City Council","http://opendatacommunities.org/id/metropolitan-district-council/wolverhampton","706298","Penn Kids Day Nursery","ISIAHWILLS20THNOV-22NDDEC20THNOV","600.00","TPP - Child Care provided for client","130204768","28/02/2018","Adult Education","24+ Advanced Learning Loan","R5034"
"Wolverhampton City Council","http://opendatacommunities.org/id/metropolitan-district-council/wolverhampton","706298","Penn Kids Day Nursery","ISIAHWILLS1STJAN-26THJAN","480.00","TPP - Child Care provided for client","130204767","28/02/2018","Adult Education","24+ Advanced Learning Loan","R5034"
"Wolverhampton City Council","http://opendatacommunities.org/id/metropolitan-district-council/wolverhampton","706298","Penn Kids Day Nursery","ISIAHWILLS11SEP-13THOCTOBER","600.00","TPP - Child Care provided for client","130204766","28/02/2018","Adult Education","24+ Advanced Learning Loan","R5034"
"Wolverhampton City Council","http://opendatacommunities.org/id/metropolitan-district-council/wolverhampton","706300","Penn News Limited","PNNEWS045","12.35","Books","130202762","07/02/2018","Strategic Organisation Development","Penn Library","R4309"
"Wolverhampton City Council","http://opendatacommunities.org/id/metropolitan-district-council/wolverhampton","706315","Permanent Futures Limited","221627","7,084.00","Agency Staff","130203883","14/02/2018","Service Director Children & Young People","Children & Young People Support Costs","R1100"
"Wolverhampton City Council","http://opendatacommunities.org/id/metropolitan-district-council/wolverhampton","706317","Perry Hall Academy","Perry Hall Primary Enhanced Funding Payment LT","1,000.00","Grant Payments","190427799","28/02/2018","Schools","Academy Early years","R4700"
"Wolverhampton City Council","http://opendatacommunities.org/id/metropolitan-district-council/wolverhampton","706317","Perry Hall Academy","Perry Hall Academy Early Years Payment Autumn Term Final 1718","35,684.79","Grant Payments","190424258","16/02/2018","Schools","Academy Early years","R4700"
"Wolverhampton City Council","http://opendatacommunities.org/id/metropolitan-district-council/wolverhampton","706317","Perry Hall Academy","Perry Hall Academy Early Years Payment Spring Term Interim 1718","24,520.67","Grant Payments","190424259","16/02/2018","Schools","Academy Early years","R4700"
"Wolverhampton City Council","http://opendatacommunities.org/id/metropolitan-district-council/wolverhampton","706317","Perry Hall Academy","SEN Mainstream Top Ups Autumn Term 2017 - Perry Hall Academy","4,312.62","Grant Payments","190418390","07/02/2018","Schools","High Needs Top Up -Mainstream Schools/Academies","R4700"
"Wolverhampton City Council","http://opendatacommunities.org/id/metropolitan-district-council/wolverhampton","706328","Peter Littleford Limited","18 ( AP )","398.75","Direct Work With Children","130203721","16/02/2018","Looked After Children","Adoption Support Fund","R6310"
"Wolverhampton City Council","http://opendatacommunities.org/id/metropolitan-district-council/wolverhampton","706328","Peter Littleford Limited","17(AP)","441.25","Direct Work With Children","130201928","02/02/2018","Looked After Children","Adoption Support Fund","R6310"
"Wolverhampton City Council","http://opendatacommunities.org/id/metropolitan-district-council/wolverhampton","706328","Peter Littleford Limited","52 ( KL )","532.50","Direct Work With Children","130202763","07/02/2018","Looked After Children","Adoption Support Fund","R6310"
"Wolverhampton City Council","http://opendatacommunities.org/id/metropolitan-district-council/wolverhampton","706332","Peters Limited","1682693","181.30","Books","130206067","16/02/2018","Strategic Organisation Development","Global Budgets","R4309"
"Wolverhampton City Council","http://opendatacommunities.org/id/metropolitan-district-council/wolverhampton","706332","Peters Limited","1682692","109.74","Books","130206066","16/02/2018","Strategic Organisation Development","Global Budgets","R4309"
"Wolverhampton City Council","http://opendatacommunities.org/id/metropolitan-district-council/wolverhampton","706332","Peters Limited","1680186","8.04","Books","130204047","02/02/2018","Strategic Organisation Development","Global Budgets","R4309"
"Wolverhampton City Council","http://opendatacommunities.org/id/metropolitan-district-council/wolverhampton","706332","Peters Limited","1680187","259.10","Books","130204048","02/02/2018","Strategic Organisation Development","Global Budgets","R4309"
"Wolverhampton City Council","http://opendatacommunities.org/id/metropolitan-district-council/wolverhampton","706332","Peters Limited","1680188","903.68","Books","130203884","02/02/2018","Strategic Organisation Development","Global Budgets","R4309"
"Wolverhampton City Council","http://opendatacommunities.org/id/metropolitan-district-council/wolverhampton","706332","Peters Limited","1681545","7.78","Books","130205324","14/02/2018","Strategic Organisation Development","Global Budgets","R4309"
"Wolverhampton City Council","http://opendatacommunities.org/id/metropolitan-district-council/wolverhampton","706346","Philips Wrtl/Philips Lighting/Indal.","260347759","6,295.20","Materials","130202765","07/02/2018","Street Lighting","Street Lighting Maintenance","R4007"
"Wolverhampton City Council","http://opendatacommunities.org/id/metropolitan-district-council/wolverhampton","706346","Philips Wrtl/Philips Lighting/Indal.","260347810","23,913.30","Materials","130203722","07/02/2018","Street Lighting","Street Lighting Maintenance","R4007"
"Wolverhampton City Council","http://opendatacommunities.org/id/metropolitan-district-council/wolverhampton","706346","Philips Wrtl/Philips Lighting/Indal.","260347633","13,112.00","Materials","130202291","02/02/2018","Street Lighting","Street Lighting Maintenance","R4007"
"Wolverhampton City Council","http://opendatacommunities.org/id/metropolitan-district-council/wolverhampton","706364","Phs Group PLC","65524442","18.72","Contract Cleaning","130201383","21/02/2018","Bereavement Services","Crematorium","R2700"
"Wolverhampton City Council","http://opendatacommunities.org/id/metropolitan-district-council/wolverhampton","706364","Phs Group PLC","65588733","269.17","Cleaning Supplies and Materials","130205100","28/02/2018","Adult Education","Service Wide","R2705"
"Wolverhampton City Council","http://opendatacommunities.org/id/metropolitan-district-council/wolverhampton","706364","Phs Group PLC","64834952","37.83","Contract Cleaning","130166784","09/02/2018","Facilities Management","Civic Centre","R2700"
"Wolverhampton City Council","http://opendatacommunities.org/id/metropolitan-district-council/wolverhampton","706364","Phs Group PLC","65595295","-10.18","Contract Cleaning","130206820","28/02/2018","School Planning & Resources","Towers Outdoor Education Centre","R2700"
"Wolverhampton City Council","http://opendatacommunities.org/id/metropolitan-district-council/wolverhampton","706365","Phs Teacrate","531566","184.00","Cleaning Supplies and Materials","130204945","28/02/2018","Independent Living Service","Independent Living Service","R2705"
"Wolverhampton City Council","http://opendatacommunities.org/id/metropolitan-district-council/wolverhampton","706417","Plexus Law","04368043","2,420.50","Insurance - General","130203723","14/02/2018","Audit Services","Legal Liability","R4962"
"Wolverhampton City Council","http://opendatacommunities.org/id/metropolitan-district-council/wolverhampton","706417","Plexus Law","04351661","1,782.86","Insurance - General","130194967","28/02/2018","Audit Services","Legal Liability","R4962"
"Wolverhampton City Council","http://opendatacommunities.org/id/metropolitan-district-council/wolverhampton","706417","Plexus Law","04351661","297.14","Insurance - General","130194967","28/02/2018","Audit Services","Legal Liability","R4962"
"Wolverhampton City Council","http://opendatacommunities.org/id/metropolitan-district-council/wolverhampton","706417","Plexus Law","04351661","-1,782.86","Insurance - General","130194967","28/02/2018","Audit Services","Legal Liability","R4962"
"Wolverhampton City Council","http://opendatacommunities.org/id/metropolitan-district-council/wolverhampton","706417","Plexus Law","04351661","-297.14","Insurance - General","130194967","28/02/2018","Audit Services","Legal Liability","R4962"
"Wolverhampton City Council","http://opendatacommunities.org/id/metropolitan-district-council/wolverhampton","706417","Plexus Law","04351661","1,980.00","Insurance - General","130194967","28/02/2018","Audit Services","Legal Liability","R4962"
"Wolverhampton City Council","http://opendatacommunities.org/id/metropolitan-district-council/wolverhampton","706417","Plexus Law","04351661","100.00","Insurance - General","130194967","28/02/2018","Audit Services","Legal Liability","R4962"
"Wolverhampton City Council","http://opendatacommunities.org/id/metropolitan-district-council/wolverhampton","706424","Pma International Limited","PMA 2784","1,651.20","Services - Professional Fees","130203724","16/02/2018","Headstart","Headstart Phase 3","R4400"
"Wolverhampton City Council","http://opendatacommunities.org/id/metropolitan-district-council/wolverhampton","706439","Portakabin Limited","900802455","125.67","Room Hire","130205101","28/02/2018","Facilities Management","Hickman Avenue Depot","R2201"
"Wolverhampton City Council","http://opendatacommunities.org/id/metropolitan-district-council/wolverhampton","706439","Portakabin Limited","900802458","386.75","Room Hire","130205104","28/02/2018","Facilities Management","Hickman Avenue Depot","R2201"
"Wolverhampton City Council","http://opendatacommunities.org/id/metropolitan-district-council/wolverhampton","706439","Portakabin Limited","900802460","272.97","Equipment - Hire","130205106","28/02/2018","Fleet Services","Passenger Transport - General","R4001"
"Wolverhampton City Council","http://opendatacommunities.org/id/metropolitan-district-council/wolverhampton","706439","Portakabin Limited","900803437","195.00","Equipment - Hire","130205513","28/02/2018","Markets","Wolverhampton Indoor and Open Market","R4001"
"Wolverhampton City Council","http://opendatacommunities.org/id/metropolitan-district-council/wolverhampton","706439","Portakabin Limited","900802461","108.33","Room Hire","130205107","28/02/2018","Markets","Wholesale Market Facilities Management","R2201"
"Wolverhampton City Council","http://opendatacommunities.org/id/metropolitan-district-council/wolverhampton","706439","Portakabin Limited","900797558","667.33","Equipment - Hire","130199420","23/02/2018","Markets","Wolverhampton Indoor and Open Market","R4001"
"Wolverhampton City Council","http://opendatacommunities.org/id/metropolitan-district-council/wolverhampton","706439","Portakabin Limited","900802457","167.72","Room Hire","130205103","28/02/2018","Facilities Management","Hickman Avenue Depot","R2201"
"Wolverhampton City Council","http://opendatacommunities.org/id/metropolitan-district-council/wolverhampton","706439","Portakabin Limited","900802456","128.72","Room Hire","130205102","28/02/2018","Facilities Management","Hickman Avenue Depot","R2201"
"Wolverhampton City Council","http://opendatacommunities.org/id/metropolitan-district-council/wolverhampton","706439","Portakabin Limited","900802459","86.67","Room Hire","130205105","28/02/2018","Facilities Management","Culwell Street Depot","R2201"
"Wolverhampton City Council","http://opendatacommunities.org/id/metropolitan-district-council/wolverhampton","706439","Portakabin Limited","900803436","667.33","Equipment - Hire","130207114","28/02/2018","Markets","Wolverhampton Indoor and Open Market","R4001"
"Wolverhampton City Council","http://opendatacommunities.org/id/metropolitan-district-council/wolverhampton","706439","Portakabin Limited","900800480","195.00","Equipment - Hire","130200835","14/02/2018","Markets","Wolverhampton Indoor and Open Market","R4001"
"Wolverhampton City Council","http://opendatacommunities.org/id/metropolitan-district-council/wolverhampton","706453","Post Office Counters Limited","VEHICLE TAX FEB 2018","9,175.00","Road Fund Licence","190420451","09/02/2018","Fleet Services","Fleet Management","R3004"
"Wolverhampton City Council","http://opendatacommunities.org/id/metropolitan-district-council/wolverhampton","706470","Ppl Public Performance Licences","3547170","534.00","Services - General Licences","130204049","14/02/2018","Markets","Wolverhampton Indoor and Open Market","R4402"
"Wolverhampton City Council","http://opendatacommunities.org/id/metropolitan-district-council/wolverhampton","706470","Ppl Public Performance Licences","3547170","1,106.75","Services - General Licences","130204049","14/02/2018","Markets","Bilston Market and Licensed Operations","R4402"
"Wolverhampton City Council","http://opendatacommunities.org/id/metropolitan-district-council/wolverhampton","706470","Ppl Public Performance Licences","3547170","-534.00","Services - General Licences","130204049","14/02/2018","Markets","Wolverhampton Indoor and Open Market","R4402"
"Wolverhampton City Council","http://opendatacommunities.org/id/metropolitan-district-council/wolverhampton","706470","Ppl Public Performance Licences","3547170","-1,106.75","Services - General Licences","130204049","14/02/2018","Markets","Bilston Market and Licensed Operations","R4402"
"Wolverhampton City Council","http://opendatacommunities.org/id/metropolitan-district-council/wolverhampton","706470","Ppl Public Performance Licences","3547170","534.00","Services - General Licences","130204049","14/02/2018","Markets","Wolverhampton Indoor and Open Market","R4402"
"Wolverhampton City Council","http://opendatacommunities.org/id/metropolitan-district-council/wolverhampton","706470","Ppl Public Performance Licences","3547170","1,106.75","Services - General Licences","130204049","14/02/2018","Markets","Bilston Market and Licensed Operations","R4402"
"Wolverhampton City Council","http://opendatacommunities.org/id/metropolitan-district-council/wolverhampton","706480","Premier Carpets & Flooring Limited","INV06450","90.00","Equipment - Purchase","130204429","07/02/2018","Leisure Services","Aldersley Leisure Village","R4000"
"Wolverhampton City Council","http://opendatacommunities.org/id/metropolitan-district-council/wolverhampton","706480","Premier Carpets & Flooring Limited","INV06449","1,948.00","Equipment - Purchase","130204428","07/02/2018","Leisure Services","Aldersley Leisure Village","R4000"
"Wolverhampton City Council","http://opendatacommunities.org/id/metropolitan-district-council/wolverhampton","706486","Premier Paper Group Limited","9082194","1,044.00","Stationery","130202292","07/02/2018","ICTS","Document Centre - General","R4308"
"Wolverhampton City Council","http://opendatacommunities.org/id/metropolitan-district-council/wolverhampton","706486","Premier Paper Group Limited","9089024","98.75","Stationery","130202767","14/02/2018","Adult Education","The Maltings","R4308"
"Wolverhampton City Council","http://opendatacommunities.org/id/metropolitan-district-council/wolverhampton","706486","Premier Paper Group Limited","9089024","25.55","Stationery","130202767","14/02/2018","Adult Education","Service Wide","R4308"
"Wolverhampton City Council","http://opendatacommunities.org/id/metropolitan-district-council/wolverhampton","706486","Premier Paper Group Limited","9089019","497.20","Stationery","130202766","14/02/2018","Adult Education","Service Wide","R4308"
"Wolverhampton City Council","http://opendatacommunities.org/id/metropolitan-district-council/wolverhampton","706486","Premier Paper Group Limited","9115532","124.30","Stationery","130204946","28/02/2018","Adult Education","Educational Studies Delivery Area","R4308"
"Wolverhampton City Council","http://opendatacommunities.org/id/metropolitan-district-council/wolverhampton","706486","Premier Paper Group Limited","9076200","1,044.00","Stationery","130201754","07/02/2018","ICTS","Document Centre - General","R4308"
"Wolverhampton City Council","http://opendatacommunities.org/id/metropolitan-district-council/wolverhampton","706486","Premier Paper Group Limited","9076195","515.50","Stationery","130201753","07/02/2018","ICTS","Document Centre - General","R4308"
"Wolverhampton City Council","http://opendatacommunities.org/id/metropolitan-district-council/wolverhampton","706486","Premier Paper Group Limited","9079970","1,044.00","Stationery","130202125","07/02/2018","ICTS","Document Centre - General","R4308"
"Wolverhampton City Council","http://opendatacommunities.org/id/metropolitan-district-council/wolverhampton","706486","Premier Paper Group Limited","9089293","1,568.24","Stationery","130202768","14/02/2018","ICTS","Document Centre - General","R4308"
"Wolverhampton City Council","http://opendatacommunities.org/id/metropolitan-district-council/wolverhampton","706486","Premier Paper Group Limited","9094255","420.20","Stationery","130203205","14/02/2018","ICTS","Document Centre - General","R4308"
"Wolverhampton City Council","http://opendatacommunities.org/id/metropolitan-district-council/wolverhampton","706486","Premier Paper Group Limited","9077764","1,044.00","Stationery","130201931","07/02/2018","ICTS","Document Centre - General","R4308"
"Wolverhampton City Council","http://opendatacommunities.org/id/metropolitan-district-council/wolverhampton","706495","Preservation Equipment Limited","0000371239","363.86","Stationery","130204430","07/02/2018","Visitor Economy","Archives","R4308"
"Wolverhampton City Council","http://opendatacommunities.org/id/metropolitan-district-council/wolverhampton","706539","Prism UK Medical Limited - Westholme Ltd","5242759","521.06","Equipment - Purchase","130204203","16/02/2018","Independent Living Service","Independent Living Service","R4000"
"Wolverhampton City Council","http://opendatacommunities.org/id/metropolitan-district-council/wolverhampton","706539","Prism UK Medical Limited - Westholme Ltd","5243120","76.56","Equipment - R & M","130204204","21/02/2018","Independent Living Service","Independent Living Service","R4003"
"Wolverhampton City Council","http://opendatacommunities.org/id/metropolitan-district-council/wolverhampton","706539","Prism UK Medical Limited - Westholme Ltd","5243482","1,298.04","Equipment - Purchase","130204205","21/02/2018","Independent Living Service","Independent Living Service","R4000"
"Wolverhampton City Council","http://opendatacommunities.org/id/metropolitan-district-council/wolverhampton","706567","Prontaprint Limited","78198","279.00","Marketing \ Non-staff advertising","130206510","21/02/2018","Visitor Economy","Arts Publicity","R4317"
"Wolverhampton City Council","http://opendatacommunities.org/id/metropolitan-district-council/wolverhampton","706567","Prontaprint Limited","78065","270.00","Printing","130206506","23/02/2018","Bereavement Services","Cemeteries","R4300"
"Wolverhampton City Council","http://opendatacommunities.org/id/metropolitan-district-council/wolverhampton","706567","Prontaprint Limited","77950","166.50","Marketing \ Non-staff advertising","130206505","23/02/2018","Visitor Economy","Arts Publicity","R4317"
"Wolverhampton City Council","http://opendatacommunities.org/id/metropolitan-district-council/wolverhampton","706567","Prontaprint Limited","78108","270.00","Marketing \ Non-staff advertising","130206822","28/02/2018","Visitor Economy","Civic & Wulfrun In-House Promotions","R4317"
"Wolverhampton City Council","http://opendatacommunities.org/id/metropolitan-district-council/wolverhampton","706567","Prontaprint Limited","78107","7,996.89","Marketing \ Non-staff advertising","130206508","23/02/2018","Visitor Economy","Civic & Wulfrun Outhouse & Other Comercial Events","R4317"
"Wolverhampton City Council","http://opendatacommunities.org/id/metropolitan-district-council/wolverhampton","706567","Prontaprint Limited","78107","-7,996.89","Marketing \ Non-staff advertising","130206508","23/02/2018","Visitor Economy","Civic & Wulfrun Outhouse & Other Comercial Events","R4317"
"Wolverhampton City Council","http://opendatacommunities.org/id/metropolitan-district-council/wolverhampton","706567","Prontaprint Limited","78107","315.00","Marketing \ Non-staff advertising","130206508","23/02/2018","Visitor Economy","Civic & Wulfrun Outhouse & Other Comercial Events","R4317"
"Wolverhampton City Council","http://opendatacommunities.org/id/metropolitan-district-council/wolverhampton","706567","Prontaprint Limited","78183","260.00","Marketing \ Non-staff advertising","130206509","23/02/2018","Visitor Economy","Arts Publicity","R4317"
"Wolverhampton City Council","http://opendatacommunities.org/id/metropolitan-district-council/wolverhampton","706567","Prontaprint Limited","78104","25.00","Marketing \ Non-staff advertising","130206507","21/02/2018","Visitor Economy","Arts Publicity","R4317"
"Wolverhampton City Council","http://opendatacommunities.org/id/metropolitan-district-council/wolverhampton","706576","Prospects Services","061908","4,132.50","TPP - Other contractors","130199895","21/02/2018","Skills","IMPACT","R5099"
"Wolverhampton City Council","http://opendatacommunities.org/id/metropolitan-district-council/wolverhampton","706576","Prospects Services","062224","5,152.42","Computing - Licences","130204947","07/02/2018","Skills","Connexions Contract","R4535"
"Wolverhampton City Council","http://opendatacommunities.org/id/metropolitan-district-council/wolverhampton","706578","Protec Fire Detection PLC","A01LD8","129.20","R&M - Departmental planned (internal)","130207260","28/02/2018","Maintenance Programme","Centralised R&M","R2000"
"Wolverhampton City Council","http://opendatacommunities.org/id/metropolitan-district-council/wolverhampton","706578","Protec Fire Detection PLC","A05KS7","583.85","R&M - Departmental planned (internal)","130196776","23/02/2018","Maintenance Programme","Civic Centre Repairs & Maintenance","R2000"
"Wolverhampton City Council","http://opendatacommunities.org/id/metropolitan-district-council/wolverhampton","706578","Protec Fire Detection PLC","A06DC6","174.72","Fixtures and Fittings - R&M","130203887","14/02/2018","Facilities Management","Civic Centre","R2502"
"Wolverhampton City Council","http://opendatacommunities.org/id/metropolitan-district-council/wolverhampton","706601","Pudsey Diamond Engineering Limited","231395","20.68","Materials","130204431","14/02/2018","Street Lighting","Street Lighting Maintenance","R4007"
"Wolverhampton City Council","http://opendatacommunities.org/id/metropolitan-district-council/wolverhampton","706601","Pudsey Diamond Engineering Limited","231395","24.12","Materials","130204431","14/02/2018","Street Lighting","Street Lighting Maintenance","R4007"
"Wolverhampton City Council","http://opendatacommunities.org/id/metropolitan-district-council/wolverhampton","706601","Pudsey Diamond Engineering Limited","231395","26.40","Materials","130204431","14/02/2018","Street Lighting","Street Lighting Maintenance","R4007"
"Wolverhampton City Council","http://opendatacommunities.org/id/metropolitan-district-council/wolverhampton","706601","Pudsey Diamond Engineering Limited","231395","15.00","Materials","130204431","14/02/2018","Street Lighting","Street Lighting Maintenance","R4007"
"Wolverhampton City Council","http://opendatacommunities.org/id/metropolitan-district-council/wolverhampton","706601","Pudsey Diamond Engineering Limited","231198","846.20","Materials","130202127","14/02/2018","Street Lighting","Street Lighting Maintenance","R4007"
"Wolverhampton City Council","http://opendatacommunities.org/id/metropolitan-district-council/wolverhampton","706607","Purchase Power Pitney Bowes","BF269320","221.29","Comms - Postage","130204050","16/02/2018","Youth Offending","Youth Offending Team","R4503"
"Wolverhampton City Council","http://opendatacommunities.org/id/metropolitan-district-council/wolverhampton","706607","Purchase Power Pitney Bowes","BE963882","34.04","Comms - Postage","130189890","14/02/2018","Catering","Education Catering - General Overheads","R4503"
"Wolverhampton City Council","http://opendatacommunities.org/id/metropolitan-district-council/wolverhampton","706607","Purchase Power Pitney Bowes","BE963882","34.04","Comms - Postage","130189890","14/02/2018","Cleaning","Cleaning of Buildings - General","R4503"
"Wolverhampton City Council","http://opendatacommunities.org/id/metropolitan-district-council/wolverhampton","706607","Purchase Power Pitney Bowes","BE963882","-39.95","Comms - Postage","130189890","14/02/2018","Cleaning","Cleaning of Buildings - General","R4503"
"Wolverhampton City Council","http://opendatacommunities.org/id/metropolitan-district-council/wolverhampton","706607","Purchase Power Pitney Bowes","BE963882","39.95","Comms - Postage","130189890","14/02/2018","Cleaning","Cleaning of Buildings - General","R4503"
"Wolverhampton City Council","http://opendatacommunities.org/id/metropolitan-district-council/wolverhampton","706607","Purchase Power Pitney Bowes","BF190687","12.50","Comms - Postage","130206353","28/02/2018","Catering","Education Catering - General Overheads","R4503"
"Wolverhampton City Council","http://opendatacommunities.org/id/metropolitan-district-council/wolverhampton","706607","Purchase Power Pitney Bowes","BF190687","12.50","Comms - Postage","130206353","28/02/2018","Cleaning","Cleaning of Buildings - General","R4503"
"Wolverhampton City Council","http://opendatacommunities.org/id/metropolitan-district-council/wolverhampton","706624","Q-Systems (UK) Limited","5374","15.00","Equipment - R & M","130207115","28/02/2018","Visitor Economy","Catering Overhead Account","R4003"
"Wolverhampton City Council","http://opendatacommunities.org/id/metropolitan-district-council/wolverhampton","706634","Quantaqua Limited","WOLVGT702","156.10","Contract Cleaning","130205328","09/02/2018","Catering","Education Catering - General Overheads","R2700"
"Wolverhampton City Council","http://opendatacommunities.org/id/metropolitan-district-council/wolverhampton","706634","Quantaqua Limited","WOLVGT703","702.45","Contract Cleaning","130205329","09/02/2018","Catering","Education Catering - General Overheads","R2700"
"Wolverhampton City Council","http://opendatacommunities.org/id/metropolitan-district-council/wolverhampton","706634","Quantaqua Limited","WOLV1420","2,054.69","Contract Cleaning","130205327","09/02/2018","Catering","Education Catering - General Overheads","R2700"
"Wolverhampton City Council","http://opendatacommunities.org/id/metropolitan-district-council/wolverhampton","706634","Quantaqua Limited","WOLV1419","910.29","Contract Cleaning","130205326","09/02/2018","Catering","Education Catering - General Overheads","R2700"
"Wolverhampton City Council","http://opendatacommunities.org/id/metropolitan-district-council/wolverhampton","706649","R A Port & Associates","1990-17-1","25.00","Services - Professional Fees","190424241","16/02/2018","Legal Services","Centralised External Legal Costs","R4400"
"Wolverhampton City Council","http://opendatacommunities.org/id/metropolitan-district-council/wolverhampton","706668","R S Recovery Limited","00-110994","177.50","Services - Professional Fees","190417724","02/02/2018","Fleet Services","Fleet Management","R4400"
"Wolverhampton City Council","http://opendatacommunities.org/id/metropolitan-district-council/wolverhampton","706668","R S Recovery Limited","00-110897","143.75","Services - Professional Fees","190417723","02/02/2018","Fleet Services","Fleet Management","R4400"
"Wolverhampton City Council","http://opendatacommunities.org/id/metropolitan-district-council/wolverhampton","706668","R S Recovery Limited","00-111581","175.00","Services - Professional Fees","190423089","14/02/2018","Fleet Services","Fleet Management","R4400"
"Wolverhampton City Council","http://opendatacommunities.org/id/metropolitan-district-council/wolverhampton","706668","R S Recovery Limited","00-111486","-47.50","Services - Professional Fees","190417725","02/02/2018","Fleet Services","Fleet Management","R4400"
"Wolverhampton City Council","http://opendatacommunities.org/id/metropolitan-district-council/wolverhampton","706668","R S Recovery Limited","00-112151","92.50","Services - Professional Fees","190423090","14/02/2018","Fleet Services","Fleet Management","R4400"
"Wolverhampton City Council","http://opendatacommunities.org/id/metropolitan-district-council/wolverhampton","706678","R.N. Diesel","3252a","80.00","Equipment - Purchase","190417761","02/02/2018","Fleet Services","Fleet Management","R4000"
"Wolverhampton City Council","http://opendatacommunities.org/id/metropolitan-district-council/wolverhampton","706678","R.N. Diesel","3159a","24.00","Equipment - Purchase","190417757","02/02/2018","Fleet Services","Fleet Management","R4000"
"Wolverhampton City Council","http://opendatacommunities.org/id/metropolitan-district-council/wolverhampton","706683","R82 UK Limited","229848","85.00","Equipment - Purchase","130204051","02/02/2018","Independent Living Service","Independent Living Service","R4000"
